{"text_format":"1","workbook":"xlsx","n_sheets":3,"sheets":["Jeu","But","Liste"],"not_rendered":{"charts":0,"images":1,"macros":1,"external_links":0,"defined_names":1,"comments":0,"pivot_tables":0},"unopened":[],"bounds":{"document_bytes":16777216,"sheet_cells":100000,"rows_first":2000,"rows_last":500,"rows_between":2000,"halvings":0,"cell_chars":16384,"cell_head_chars":4096},"cells_cut":0,"cells_raw":0,"read":"whole","date_system":"1900"}

{"sheet":"Jeu","index":0,"n_rows":35,"n_cols":26,"rows_kept":35,"cut":false,"hidden":false,"merged":[[18,3,18,5],[18,8,18,10],[19,3,19,5],[16,3,16,5],[16,8,16,10],[17,3,17,5],[33,4,33,7],[20,3,20,5],[20,8,20,10],[21,3,21,5],[22,3,22,5],[22,8,22,10],[23,3,23,5],[33,10,33,11],[9,3,9,5],[1,1,1,10],[14,8,14,10],[15,3,15,5],[10,3,10,5],[10,8,10,10],[11,3,11,5],[12,3,12,5],[12,8,12,10],[13,3,13,5],[14,3,14,5],[9,8,9,12],[11,8,11,12],[13,8,13,12],[24,18,24,19],[23,8,23,12],[15,8,15,12],[17,8,17,12],[19,8,19,12],[21,8,21,12]]}
[null,null,null,null,null,null,null,null,null,null,null,null,null,"aaa","aaa","aaa","aaa"]
[null,null,null,null,null,null,null,null,null,null,null,null,null,"aaa","aaa","aaa","aaa"]
[null,null,null,null,null,null,null,null,null,null,null,null,null,"aaa","aaa","aaa","aaa"]
[null,"Série",1,{"$f":"VLOOKUP($C$4,Liste!$C$8:$X$200,4)","v":1},null,null,null,null,null,null,null,null,null,"aaa","aaa","aaa","aaa"]
[null,null,null,null,null,null,null,null,null,null,null,null,"Scores :",{"$f":"SUM(N8:N200)","v":0},{"$f":"SUM(O8:O200)","v":0},0,0]
[null,"Le mot cherché est un",null,null,{"$f":"VLOOKUP($C$4,Liste!$C$8:$X$200,3)","v":"verbe     "},"de",{"$f":"LEN(K6)","v":6},"lettres",{"$f":"IF(D28=2,LEFT(K6,1),IF(D28=3,LEFT(K6,2),\"\"))","v":""},null,{"$f":"VLOOKUP(C4,Liste!C8:V192,2)","v":"cacher"},null,null,"  Feuille de résultat"]
[null,null,null,null,null,null,null,null,"1ère lettre",null,null,null,null,"A","B","C","D"]
[]
[null,"Indice"]
[null,{"$f":"IF(D29<0,\"\",1)","v":1},null,{"$f":"IF(D29<0,\"\",VLOOKUP($C$4,Liste!$C$8:$Y$192,5))","v":"secret                        "},null,null,null,null,{"$f":"IF(D29<2,\"\",VLOOKUP($C$4,Liste!$C$8:$Y$200,13))","v":""}]
[]
[null,{"$f":"IF(D29<2,\"\",2)","v":""},null,{"$f":"IF(D29<2,\"\",VLOOKUP($C$4,Liste!$C$8:$Y$192,6))","v":""},null,null,null,null,{"$f":"IF(D29<3,\"\",VLOOKUP($C$4,Liste!$C$8:$Y$200,14))","v":""}]
[]
[null,{"$f":"IF(D29<3,\"\",3)","v":""},null,{"$f":"IF(D29<3,\"\",VLOOKUP($C$4,Liste!$C$8:$Y$192,7))","v":""},null,null,null,null,{"$f":"IF(D29<4,\"\",VLOOKUP($C$4,Liste!$C$8:$Y$200,15))","v":""}]
[]
[null,{"$f":"IF(D29<4,\"\",4)","v":""},null,{"$f":"IF(D29<4,\"\",VLOOKUP($C$4,Liste!$C$8:$Y$192,8))","v":""},null,null,null,null,{"$f":"IF(D29<5,\"\",VLOOKUP($C$4,Liste!$C$8:$Y$200,16))","v":""}]
[]
[null,{"$f":"IF(D29<5,\"\",5)","v":""},null,{"$f":"IF(D29<5,\"\",VLOOKUP($C$4,Liste!$C$8:$Y$192,9))","v":""},null,null,null,null,{"$f":"IF(D29<6,\"\",VLOOKUP($C$4,Liste!$C$8:$Y$200,17))","v":""}]
[]
[null,{"$f":"IF(D29<6,\"\",6)","v":""},null,{"$f":"IF(D29<6,\"\",VLOOKUP($C$4,Liste!$C$8:$Y$192,10))","v":""},null,null,null,null,{"$f":"IF(D29<7,\"\",VLOOKUP($C$4,Liste!$C$8:$Y$200,18))","v":""}]
[]
[null,{"$f":"IF(D29<7,\"\",7)","v":""},null,{"$f":"IF(D29<7,\"\",VLOOKUP($C$4,Liste!$C$8:$Y$192,11))","v":""},null,null,null,null,{"$f":"IF(D29<8,\"\",VLOOKUP($C$4,Liste!$C$8:$Y$200,19))","v":""}]
[]
[null,{"$f":"IF(D29<8,\"\",8)","v":""},null,{"$f":"IF(D29<8,\"\",VLOOKUP($C$4,Liste!$C$8:$Y$192,12))","v":""},null,null,null,null,{"$f":"IF(D29<9,\"\",VLOOKUP($C$4,Liste!$C$8:$Y$200,20))","v":""}]
[null,null,null,null,null,null,null,null,null,null,null,null,null,null,null,null,null,null,"calculs des points",null,null,"indices","points","explic","1ère lettre","2ème lettre"]
[null,null,null,null,null,null,null,null,null,null,{"$f":"IF(E34=\"\",\"\",IF(E34=K6,\"G a g n é !\",\"Cherchez encore…\"))","v":""},null,null,null,null,null,null,null,"Indice",{"$f":"VLOOKUP($D$29,V26:X35,2)","v":12},null,0,12,0,0,0]
[null,"Ok expli",null,{"$f":"E27","v":false},{"$f":"IF(LEN(I10)>2,TRUE,FALSE)","v":false},null,null,null,null,null,null,null,null,null,null,null,null,null," -Explication",{"$f":"IF(D27=FALSE,0,IF(D30=1,VLOOKUP($D$29,V27:X35,3),0))","v":0},null,1,12,0,2,4]
[null,"1ère lettre",null,1,null,null,null,null,null,null,{"$f":"IF($E$34=$K$6,IF(L28>1,\"Points obtenus :\",\"Point obtenu :\"),\"\")","v":""},{"$f":"IF(E34=K6,IF(T31<1,0,T31),\"\")","v":""},null,null,null,null,null,null," - lettre",{"$f":"IF($D$28=2,VLOOKUP($D$29,$V$27:$Y$35,4),0)","v":0},null,2,11,6,2,3]
[null,"indice",null,0,null,null,null,null,null,null,null,null,null,null,null,null,null,null," - lettre 2",{"$f":"IF($D$28=3,VLOOKUP($D$29,$V$27:$Z$35,5),0)","v":0},null,3,9,4,1,2]
[null,"expl o/n",null,0,null,null,null,null,null,null,{"$f":"IF($D$31=1,\"Série terminée\",\"\")","v":""},null,null,null,null,null,null,null,"Total",{"$f":"T26-T27-T28-T29","v":12},null,4,7,3,1,2]
[null,"solution",null,0,null,null,null,null,95,null,null,null,null,null,null,null,null,null,"total indexé",{"$f":"ROUND(T30/10*G6,0)","v":7},null,5,6,2,1,2]
[null,null,null,null,null,null,null,null,null,null,null,null,null,null,null,null,null,null,null,null,null,6,5,2,1,2]
[null,null,null,null,null,null,null,null,null,null,null,null,null,null,null,null,null,null,null,null,null,7,4,1,1,1]
[null,null,null,"         Votre réponse :",null,null,null,null,null,null,"Points pour le joueur :     A       B       C       D",null,null,null,null,null,null,0,null,null,null,8,3,1,1,1]
[null,null,null,null,null,null,null,null,null,null,null,null,null,null,null,null,null,9,0,0,0,0]

{"sheet":"But","index":1,"n_rows":40,"n_cols":8,"rows_kept":40,"cut":false,"hidden":false,"merged":[[3,1,5,1]]}
[]
[]
[]
[null,"Jeu des indices"]
[]
[]
[]
[]
[]
[]
[]
[]
[]
[]
[null,"Mots no",{"$f":"Jeu!C4","v":1}]
[]
[null,"Décompte de points pour le mot de ",{"$f":"Jeu!G6","v":6},"lettres"]
[]
[null,"Points au départ pour 10 lettres",{"$f":"Jeu!T26","v":12}]
[null," - Explications demandées",{"$f":"Jeu!T27","v":0}]
[null," - 1ère lettre demandée",{"$f":"Jeu!T28","v":0}]
[null," - 2 lettres demandées ",{"$f":"Jeu!T29","v":0}]
[null,"Total pour 10 lettres",{"$f":"Jeu!T30","v":12}]
[null,"No de points  (indexés)",{"$f":"Jeu!T31","v":7}]
[]
[]
[]
[]
[]
[]
[null,null,null,"indices","points","explication","1ère lettre","2 lettres"]
[null,null,null,1,12,0,-2,-4]
[null,null,null,2,11,-6,-2,-3]
[null,null,null,3,9,-4,-1,-2]
[null,null,null,4,7,-3,-1,-2]
[null,null,null,5,6,-2,-1,-2]
[null,null,null,6,5,-2,-1,-2]
[null,null,null,7,4,-1,-1,-1]
[null,null,null,8,3,-1,-1,-1]
[null,null,null,9,0,0,0,0]

{"sheet":"Liste","index":2,"n_rows":459,"n_cols":24,"rows_kept":459,"cut":false,"hidden":false,"merged":[[5,6,5,13],[5,14,5,21]]}
[null,null,"Jeu créé sur Smaky par Pierre Fornerod - Adaptation Excel par Y. Péguiron 15.12.01"]
[]
[]
[]
[]
[null,null,null,"Réponse",null,null,"Indices",null,null,null,null,null,null,null,"Explications"]
[null,null,null,null,null,null,1,2,3,4,5,6,7,8,1,2,3,4,5,6,7,8,null," "]
[null,null,1,"cacher","verbe     ",1,"secret                        ","couvrir                       ","ôter                          ","voiler                        ","dissimuler                 ","masquer                       ","                              ",null,".. en général on le cache                                                                           ","masquer                                                                    ","enlever de la vue                                            ","se voiler la face","taire, dissimuler                                                                                     ","se cacher le visage                                                                       ","                                                     ",null,"celer, voiler, enfouir, secret, mystère, se tapir, dissimuler, masquer, couvrir, ôter"," "]
[null,null,2,"clou","nom     ",1,"pointe                        ","tête                          ","sommet                        ","enfoncer                      ","pneu                       ","marteau                       ","                              ",null,"il est pointu                                                                                  ","partie du clou sur laquelle on tape                                         ","le clou du spectacle                                         ","enfoncer un clou","pneu à clous                                                                                        ","pour enfoncer les clous                                                                   ","                                                     ",null,"cheville, tête, corps, tige, pointe, boulon, crampon, fiche, marteau, enfoncer, taper, tenaille"," "]
[null,null,3,"bague","nom     ",1,"pierre                        ","alliance                      ","oiseaux                       ","écrin                         ","chevalière                 ","doigt                         ","                              ",null,"on orne les bagues de pierres précieuses                                                            ","bague de mariage, de fiançailles                                            ","on les bagues pour étudier leurs déplacements                ","boîte à bague !","bague épaisse                                                                                       ","la bague au doigt                                                                         ","                                                     ",null,"chevalière, pierre précieuse, écrin, annulaire, anneau, alliance"," "]
[null,null,4,"édifice","nom     ",1,"monument                      ","château                       ","villa                         ","maison                        ","bâtiment                   ","immeuble                      ","construction                  ",null,"Edifice commémoratif                                                                                ","Edifice historique                                                          ","édifice individuel                                           ","édifice courant","édifice                                                                                             ","édifice habitable                                                                         ","édifice                                              ",null,"bâtiment, monument, immeuble, maison, villa, manoir, donjon, habitation, église"," "]
[null,null,5,"erreur","nom     ",1,"impair                        ","coche                         ","leurre                        ","bourde                        ","quiproquo                  ","bévue                         ","gaffe                         ",null,"faute, maladresse                                                                                   ","et tac une coche!                                                           ","piège, appât                                                 ","bêtise","source de malentendu                                                                                ","erreur                                                                                    ","faute, erreur                                        ",null,"bourde, leurre, imagination, abus, impair, bévue, faute, méprise, aberration, quiproquo"," "]
[null,null,6,"briller","verbe     ",1,"feux                          ","luire                         ","étinceler                     ","rayonner                      ","scintiller                 ","                              ","                              ",null,"briller de mille feux                                                                               ","briller légèrement                                                          ","briller de manière intense                                   ","briller","briller avec un intensité variable                                                                  ","                                                                                          ","                                                     ",null,"chatoyer, miroiter, luire, étinceler, scintiller, éclairer, rayonner, illuminer"," "]
[null,null,7,"cartes","nom     ",1,"couleur                       ","talon                         ","carré                         ","battre                        ","banque                     ","carreau                       ","dame                          ",null,"un jeu de cartes a, en général 4 couleurs (trèfle, pique, carreau, coeur                            ","ce qui reste du jeu quand on a coupé ou distribué                           ","4 cartes de même valeur : carré d'as                         ","mélanger les cartes","au casino, on joue au 21 contre la banque                                                           ","une des 4 couleurs                                                                        ","valeur d'une carte (entre le valet et le roi)        ",null,"carreau, couleur, mise, dame, couper, donne, talon, banque, jouer, coeur, carré, tricheur, battre, déjeter, atout, trèfle, pique"," "]
[null,null,8,"concours","nom     ",1,"combat                        ","entrée                        ","circonstances                 ","compétition                   ","sélection                  ","examen                        ","jeu                           ",null,"concours à deux                                                                                     ","concours d'entrée (entreprise)                                              ","concours de circonstances, hasard                            ","concours à plusieurs","se mesurer à d'autres                                                                               ","test, concours                                                                            ","concours amical                                      ",null,"circonstances, lutte, joute, combat, rival, compétition, concurrent, champion, examen"," "]
[null,null,9,"bois","nom     ",1,"charme                        ","noyer                         ","langue                        ","plancher                      ","tavillon                   ","chêne                         ","arbre                         ",null,"espèce d'arbre                                                                                      ","arbre                                                                       ","la langue de bois ( parler pour ne rien dire)               ","il est en bois","sortes de petites tuiles en bois qui recouvrait les toits, les murs des chalets                     ","arbre dont le bois est utilisé pour faire des meubles                                     ","est fait de bois, par définition                     ",null,"charme, noyer, acajou, aulne, cèdre, frêne, santal, sapin, teck, érable, merisier, chêne"," "]
[null,null,10,"écriture","nom     ",1,"caractère                     ","dictée                        ","moine                         ","griffonner                    ","brouillon                  ","manuscrit                     ","lettre                        ",null,"signe typographique, hiéroglyphe                                                                    ","on écrit ce qu'on entend                                                    ","ils furent parmi les premiers à utiliser l'écriture          ","écrire quelques signes ou lettres","texte écrit rapidement, premier jet                                                                 ","texte écrit                                                                               ","...de l'alphabet ou message écrit que l'on envoie    ",null,"caractère, copie, dictée, manuscrit, lettre, marge, biffer, corriger, griffonner, ligne"," "]
[null,null,11,"administration","nom     ",1,"bureau                        ","fonctionnaire                 ","queue                         ","gouverner                     ","Etat                       ","gestion                       ","direction                     ",null,"Les employés de l'administration y travaillent                                                      ","Employé de l'administration                                                 ","Au guichet des bureaux de l'administration                   ","Administrer","Il administre ses citoyens                                                                          ","Action de gérer, d'administrer                                                            ","chef d'une administration                            ",null,"bureau, fonctionnaire, queue, rouages, régisseur, régir, gouverner, employé, Etat, gestion, direction"," "]
[null,null,12,"animal","nom     ",1,"Belmondo                      ","Etre                          ","sauvage                       ","bétail                        ","domestique                 ","                              ","                              ",null,"A joué dans \"L'animal\"                                                                              ","l'animal est un être vivant                                                 ","Animal sauvage, fauve                                        ","animaux de la ferme","animal domestique (chien...)                                                                        ","                                                                                          ","                                                     ",null,"bête, être vivant, créature, bestiole, bétail, faune, espèce, sauvage, domestique"," "]
[null,null,13,"bénéfice","nom     ",1,"avantage                      ","aubaine                       ","gagner                        ","profit                        ","rendement                  ","gratification                 ","intérêts                      ",null,"tirer bénéfice, avoir un avantage                                                                   ","chance, occasion favorable                                                  ","le bénéfice est un gain                                      ","syn. de bénéfice","permet de calculer le bénéfice                                                                      ","prime nette, en plus du salaire habituel                                                  ","Ce que l'épargne produit comme bénéfice              ",null,"avantage, rendement, aubaine, gratte, dividende, gagner, fructifier, gain, produit, profit"," "]
[null,null,14,"achat","nom     ",1,"acquérir                      ","client                        ","prix                          ","enchère                       ","commande                   ","chaland                       ","acquisition                   ",null,"acheter                                                                                             ","celui qui achète                                                            ","Coût de la marchandise                                       ","Manière spéciale d'acheter","Achat par correspondance                                                                            ","Client                                                                                    ","achat                                                ",null,"acquérir, client, commande, prix, marché, enchère, chaland, comptant, emplette, acquisition"," "]
[null,null,15,"accueil","nom     ",1,"abord                         ","ours                          ","bisou                         ","embrassade                    ","salut                      ","hospitalité                   ","recevoir                      ",null,"Façon d'accueillir les gens                                                                         ","très peu accueillant                                                        ","Façon d'accueillir                                           ","Façon d'accueillir","Façon de se rencontrer, d'accueillir                                                                ","Donner l'accueil, recevoir                                                                ","Accueillir                                           ",null,"abord, embrassade, bisou, avenant, affable, ours, salut, accolade, aimable, hospitalier, recevoir"," "]
[null,null,16,"âge","nom     ",2,"vie                           ","année                         ","vétéran                       ","jeune                         ","aîné                       ","doyen                         ","centenaire                    ",null,"âge durée de vie                                                                                   ","on les compte !                                                             ","Sportif âgé de plus de 40 ans                                ","petit d'âge !","Enfant le plus âgé                                                                                  ","Dans une équipe, le plus âgé                                                              ","âgé de 100 ans                                       ",null,"année, vie, trentaine, vétéran, vieux, jeune, aîné, doyen, cadet, centenaire"," "]
[null,null,17,"cirque","nom     ",2,"toile                         ","piste                         ","mât                           ","arène                         ","animaux                    ","artiste                       ","ménagerie                     ",null,"tente du cirque                                                                                     ","cercle de sciure                                                            ","tient la tente du cirque                                     ","ancien cirque",".. du cirque                                                                                        ","clown, acrobate...                                                                        ","les animaux du cirque                                ",null,"arène, toile, mât, piste, animaux, ménagerie, artiste, clown"," "]
[null,null,18,"juge","nom     ",2,"robe                          ","voleur                        ","paix                          ","bible                         ","arbitre                    ","peine                         ","perruque                      ","tribunal","la robe du juge                                                                                     ","passe devant le juge                                                        ","un juge de paix                                              ","les Juges (livre)","Un juge-arbitre                                                                                     ","le juge prononce la peine du condamné                                                     ","En Angleterre, ils ont encore des perruques          ","Lieu de travail du juge","robe, voleur, paix, bible, arbitre, peine, perruque, tribunal"," "]
[null,null,19,"essai","nom     ",2,"pilote                        ","aventure                      ","expérience                    ","risque                        ","épreuve                    ","vérification                  ","test                          ",null,"un pilote d'essais                                                                                  ","essayer, c'est partir à l'aventure                                          ","un essai                                                     ","on prend un risque en essayant","un essai, c'est comme un défi                                                                       ","on contrôle les résultats des essais                                                      "," essai",null,"aventure, expérience, tenter, épreuve, vérification, expérimentation, hasard, risquer, tester"," "]
[null,null,20,"famille","nom     ",2,"esprit                        ","vie                           ","branche                       ","air                           ","ressemblance               ","père                          ","nom                           ",null,"l'esprit de famille                                                                                 ","vie de famille                                                              ","partie d'une famille (généalogie)                            ","un air de famille, ressemblance","un air de famille                                                                                   ","chef de la famille (macho !)                                                              ","nom de famille                                       ",null,"esprit, vie, branche, ressemblance, père, nom, air"," "]
[null,null,21,"envoi","nom     ",2,"émission                      ","arrivage                      ","paquet                        ","boîte                         ","message                    ","expédier                      ","lettre                        ",null,"émettre un message, l'envoyer                                                                       ","dans les centres de tri postal                                              ","envoi de grande dimension                                    ","boîte aux lettres","il se trouve dans la lettre                                                                         ","envoyer une lettre                                                                        ","est fait pour être envoyée ou reçue                  ",null,"arrivage, expédition, colis, paquet, message, nouvelle, transmettre, émission, lettre"," "]
[null,null,22,"épices","nom     ",2,"cuisine                       ","route                         ","arôme                         ","condiment                     ","safran                     ","cannelle                      ","poivre                        ",null,"C'est là qu'on les utilise le plus                                                                  ","la route des épices (vers les Indes)                                        ","chaque épice a le sien                                       ","fait avec des épices","une épice très chère                                                                                ","épice utilisée en confiserie et en pâtisserie                                             ","atchoum !                                            ",null,"aromate, condiment, pimenté, poivre, muscade, assaisonnement, vanille, safran"," "]
[null,null,23,"abeille","nom     ",2,"cire                          ","voltiger                      ","rayon                         ","hexagone                      ","reine                      ","ruche                         ","miel                          ",null,"On trouve le la cire d'abeilles                                                                     ","les abeilles voltigent                                                      ","les compartiments de la ruche s'appellent des rayons         ","Les rayons ont la forme d'un hexagone","Toute la ruche travaille pour elle                                                                  ","Maison des abeilles                                                                       ","Les abeilles le fabriquent                           ",null,"reine, ruche, cire, voltiger, dard, essaim, rayon, bourdonner, miel"," "]
[null,null,24,"épée","nom     ",2,"blanche                       ","poignée                       ","lame                          ","Tolède                        ","fleuret                    ","arme                          ","sabre                         ",null,"arme blanche (avec une lame)                                                                        ","on tient l'épée par elle                                                    ","partie de l'épée                                             ","Ville qui produit des lames réputées","épée                                                                                                ","L'épée est une arme                                                                       ","épée à lame courbe                                   ",null,"arme, glaive, lame, Tolède, blanche, rapière, dague, sabre, fleuret"," "]
[null,null,25,"boucle","nom     ",2,"ardillon                      ","Tour de France                ","Indianapolis                  ","fermeture                     ","ceinture                   ","anneau                        ","oreilles                      ",null,"Bout de métal qui se fixe dans les trous de la ceinture                                             ","On l'appelle \"La Grande Boucle\"                                             ","Circuit de voitures en forme d'anneau                        ","Elle permet de boucler","On la boucle !                                                                                      ","Boucle                                                                                    ","Boucles d'oreilles                                   ",null,"anneau, ardillon, fermeture, broche, agrafe, circuit, Tour de France, ceinture, oreilles"," "]
[null,null,26,"chaleur","nom     ",2,"ardent                        ","rouge                         ","blanc                         ","rayon                         ","canicule                   ","thermomètre                   ","bouffée                       ",null,"très intense                                                                                        ","couleur chaude                                                              ","chauffer à blanc: très très chaud                            ","de chaleur","chaleur d'été longue et intense                                                                     ","mesure la température                                                                     ","... de chaleur                                       ",null,"ardent, rouge, blanc, suffocant, rayon, thermomètre, calorique, canicule, feu, torride, bouffée"," "]
[null,null,27,"éclairage","nom     ",2,"applique                      ","réflecteur                    ","couvre-feu                    ","flamme                        ","phare                      ","réverbère                     ","allumette                     ","soleil","Lampe fixée contre un mur                                                                           ","Ecran qui sert à dévier les rayons lumineux                                 ","éclairage public éteint à une heure fixe                     ","de la bougie","éclairage pour bateaux                                                                              ","Lampe pour l'éclairage public                                                             ","Pour la flamme de la bougie                          ","éclairage naturel !","applique, réverbère, phare, torche, écran, réflecteur, couvre-feu, allumette, lumière, flamme, lampe"," "]
[null,null,28,"désagréable","adjectif   ",2,"antipathique                  ","impoli                        ","odieux                        ","déplaisant                    ","importuner                 ","embêtant                      ","pas (peu) commode             ",null,"désagréable (syn.)                                                                                  ","Malhonnête                                                                  ","désagréable, méchant                                         ","peu agréable","rendre la vie peu agréable                                                                          ","qui dérange                                                                               ","désagréable                                          ",null,"antipathique, impoli, peu commode, odieux, choquant, déplaire, importuner"," "]
[null,null,29,"accent","nom     ",2,"aigu                          ","doux                          ","grave                         ","rude                          ","italien                    ","fort                          ","circonflexe                   ",null,"accent aigu                                                                                         ","accent doux                                                                 ","accent grave                                                 ","un rude accent","l'accent italien                                                                                    ","un fort accent                                                                            ","accent circonflexe                                   ",null,"aigu, doux, grave, rude, italien, fort, circonflexe"," "]
[null,null,30,"douleur","nom     ",2,"accès                         ","crise                         ","maux                          ","cruel                         ","souffrir                   ","calvaire                      ","élancements                   ",null,"Accès de toux, de fièvre                                                                            ","Douleur très forte                                                          ","Avoir mal                                                    ","Douleur terrible","Avoir des douleurs                                                                                  ","Souffrir beaucoup et longtemps                                                            ","Douleurs très fortes                                 ",null,"accès, crise, élancement, maux, cruel, endurer, souffrir, calvaire"," "]
[null,null,31,"air","nom     ",3,"vie                           ","chambre                       ","voler                         ","couche                        ","pur                        ","pollution                     ","ventilateur                   ",null,"sans air, pas de vie                                                                                ","chambre à air (pneu)                                                        ","c'est dans les airs qu'on le fait                            ","couche d'air, de gaz","de l'air pur...                                                                                     ","air pollué                                                                                ","fait de l'air                                        ",null,"ciel, espace, vie, couche, émanation, gaz, aération, pur, serein, pollution, ventilateur, éther"," "]
[null,null,32,"articulation","nom     ",3,"union                         ","craquer                       ","goutte                        ","joint                         ","cheville                   ","luxer                         ","coude                         ","entorse","union des os entre eux                                                                              ","faire craquer les articulations des doigts                                  ","maladie qui atteint les articulations                        ","lieu de l'assemblage de deux éléments","articulation du pied                                                                                ","accident qui touche une articulation                                                      ","articulation du bras","accident qui touche une articulation","coude, poignet, genou, cou, entorse, luxation, joint, emboîtement, ankyloser, hanche, cheville"," "]
[null,null,33,"cercle","nom     ",3,"tour                          ","équateur                      ","inscrit                       ","hélice                        ","panier                     ","rayon                         ","quadrature                    ",null,"de forme circulaire                                                                                 ","ligne imaginaire en forme de cercle                                         ","cercle inscrit (dans un triangle)                            ","tourne le long d'un cercle","...de basket, appelé \"cercle\"                                                                       ","... d'un cercle                                                                           ","du cercle (mission impossible)                       ",null,"collier, couronne, tour, tangente, courbe, anneau, orbite, circuit, ellipse, Pythagore, rond"," "]
[null,null,34,"bonheur","nom     ",3,"porter                        ","réussite                      ","nager                         ","argent                        ","étoile                     ","chance                        ","joie                          ",null,"porter bonheur                                                                                      ","succès                                                                      ","nager dans le bonheur                                        ","l'argent ne fait pas le bonheur","né sous une bonne étoile, heureux                                                                   ","au petit bonheur la chance                                                                ","béatitude, bien-être                                 ",null,"délices, chance, aubaine, bonne étoile, réussite, bien-être, confort, amour, joie, béatitude"," "]
[null,null,35,"tissu","nom     ",3,"pièce                         ","trame                         ","chute                         ","cellulaire                    ","culture                    ","lé                            ","étoffe                        ","soierie","morceau de tissu                                                                                    ","aspect des mailles des fils qui constituent le tissu                        ","morceau de tissu coupé qui ne sert à plus rien               ","tissu cellulaire, histologie","cultiver des tissus (animaux, végétaux)  dans un laboratoire de recherche                           ","bord d'une pièce de tissu                                                                 ","tissu","tissu de soie","cotonnade, trame, lé, pièce, coudre, crêper, froisser, repasser, lainage, étoffe, soierie, lingerie, coupon"," "]
[null,null,36,"avenir","nom     ",3,"horoscope                     ","descendance                   ","perspective                   ","lendemain                     ","prochain                   ","futur                         ","                              ",null,"prédit votre avenir                                                                               ","votre famille à venir                                                       ","prévision                                                    ","déjà le futur !","à venir                                                                                             "," avenir","                                                     ",null,"descendance, ultérieur, destin, lendemain, attente, perspective, prochain, futur"," "]
[null,null,37,"angle","nom     ",3,"fermer                        ","droit                         ","centre                        ","coin                          ","opposé                     ","rapporteur                    ","obtus                         ",null,"le gardien ferme son angle                                                                          ","angle droit (90 o)                                                          ","angle au centre d'un polygone                                ","angle d'une pièce","angle opposé (triangle)                                                                             ","instrument pour mesurer et(ou construire des angles                                       ","angle obtus                                          ",null,"coin, ligne brisée, renfoncement, coude, droit, aigu, saillant, adjacent, opposé, au centre, tracer, mesurer"," "]
[null,null,38,"dette","nom     ",3,"devoir                        ","échéance                      ","service                       ","déficit                       ","payer                      ","reconnaissance                ","                              ",null,"obligation de payer qqchose à qqun                                                                  ","date à laquelle la dette doit être payée                                    ","service de la dette (Etat)                                   ","pertes, dettes","payer sa dette                                                                                      ","reconnaissance de dette                                                                   ","                                                     ",null,"créance, emprunt, prêt, engagement, passif, découvert, échéance, gage, déficit, amortissement, s'acquitter"," "]
[null,null,39,"appel","nom     ",3,"De Gaulle                     ","secours                       ","phares                        ","numéro                        ","sonner                     ","offres                        ","cri                           ","héler","appel du 18 juin 1940                                                                               ","appel au secours                                                            ","appel de phares                                              ","numéro d'appel (téléphone)","sonner l'appel (militaire)                                                                          ","appel d'offres                                                                            "," appel","appeler en criant","convocation, citation, cri, invitation, convier, mander, secours, héler"," "]
[null,null,40,"ensemble","nom     ",3,"concert                       ","concubins                     ","simultanément                 ","plan                          ","habitations                ","choeur                        ","théorie                       ",null,"de concert  ensemble                                                                               ","ils vivent ensemble                                                         ","l'un avec l'autre et en même temps                           ","plan d'ensemble, vue de loin (cinéma-BD)","les grands ensembles (groupes de maisons)                                                           ","ensemble vocal                                                                            ","théorie des ensembles                                ",null,"de concert, totalement, tout, alliage, amoncellement, cohérence, solidarité, choeur"," "]
[null,null,41,"arme","nom     ",3,"collection                    ","feu                           ","présenter                     ","crime                         ","prendre                    ","blanche                       ","chimique                      ",null,"collection d'armes                                                                                  ","arme à feu                                                                  ","présenter les armes (militaire)                              ","arme du crime","prendre les armes                                                                                   ","arme blanche (couteau...)                                                                 ","arme chimique                                        ",null,"coup, tuer, dard, trait, flèche, balle, lance, épieu, bâton, massue, pique, feu, blanche"," "]
[null,null,42,"boîte","nom     ",3,"chocolats                     ","musique                       ","mettre                        ","vitesse                       ","lettres                    ","allumettes                    ","nuit                          ",null,"boîte de chocolats                                                                                  ","boîte à musique                                                             ","mettre en boîte                                              ","boîte à vitesse","boîte aux lettres                                                                                   ","boîte d'allumettes                                                                        ","boîte de nuit, cabaret                               ",null,"couvercle, cassette, coffret, compartiment, bahut, fond, serrure, rangement, carton, écrin, allumettes"," "]
[null,null,43,"barrière","nom     ",3,"champs                        ","passage                       ","corail                        ","douane                        ","séparation                 ","garde                         ","obstacle                      ",null,"barrière autour des champs                                                                          ","barrière de passage à niveau                                                ","barrière de corail                                           ","barrières douanière","barrière entre 2 éléments                                                                           ","garde-barrière                                                                            "," barrière",null,"digue, obstacle, mur, palissade, grillage, parapet, barrage, séparation, garde-fou"," "]
[null,null,44,"battre","verbe     ",3,"cartes                        ","couture                       ","damer                         ","record                        ","fer                        ","beurre                        ","ailes                         ","frapper","battre les cartes: les mélanger                                                                     ","battre à plate couture, écraser                                             ","damer le pion, battre (au jeu de dames)                      ","battre un record","battre le fer pendant qu'il est chaud, froid...                                                     ","beurre battu                                                                              ","battre des ailes pour voler                          ","battre qqun","corriger, crosser, claquer,abîmer, rosser, brutaliser, fouetter, heurter, cogner, frapper"," "]
[null,null,45,"blessure","nom     ",3,"bosse                         ","bleu                          ","coups                         ","coupure                       ","lésion                     ","amour-propre                  ","                              ",null,"blessure suite à un coup                                                                            ","marque d'un coup                                                            ","inculpé pour coups et blessures                              ","entaille","blessure","blessure d'amour-propre                                                                   ","                                                     ",null,"ulcère, cicatrice, griffe, estafilade, traumatisme, ecchymose, entaille, cassure, plaie, lésion, coupure"," "]
[null,null,46,"dévorer","verbe     ",4,"yeux                          ","avidité                       ","livre                         ","engloutir                     ","avaler                     ","engouffrer                    ","manger                        ",null,"dévorer des yeux                                                                                    ","manger avec avidité                                                         ","dévorer un livre                                             "," dévorer (pour de la nourriture)","manger                                                                                              ","manger goulûment                                                                          ","dévorer                                              ",null,"engloutir, avaler, engouffrer, s'empiffrer, manger, livre"," "]
[null,null,47,"emporter","verbe     ",4,"tout de suite                 ","mourir                        ","ôter                          ","charrier                      ","prendre                    ","enlever                       ","                              ",null,"C'est pour emporter ou manger tout de suite !                                                       ","il a été emporté par une cruelle maladie                                    ","enlever                                                      ","transporter ailleurs","emporter                                                                                            ","emporter                                                                                  ","                                                     ",null,"enlever, emmener, ôter, charrier, entraîner, prendre"," "]
[null,null,48,"entendre","verbe     ",4,"sourd                         ","confession                    ","raison                        ","comprendre                    ","percevoir                  ","bruit                         ","ouïr                          ",null,"ne pas entendre                                                                                     ","entendre en confession                                                      ","entendre raison                                              ","entendre ce que l'autre nous dit","entendre ce qui se passe                                                                            ","on l'entend                                                                               "," entendre",null,"discerner, percevoir, distinguer, ausculter, sourd, bruit, ouïr, audition"," "]
[null,null,49,"espace","nom     ",4,"publicitaire                  ","vert                          ","encombrement                  ","dimension                     ","Euclide                    ","clavier                       ","distance                      ","vide","espace publicitaire                                                                                 ","espace vert                                                                 ","espace limité                                                ","espace à trois dimensions","espace euclidien                                                                                    ","barre d'espace                                                                            ","espace entre deux objets                             ","l'espace interstellaire","distance, champ, place, aire, superficie, dimensions, largeur, étendue, occupation, cosmos, ouvrir, occuper"," "]
[null,null,50,"appétit","nom     ",4,"perdre                        ","oiseau                        ","soif                          ","ogre                          ","anorexie                   ","curiosité                     ","faim                          ","apéritif","perdre l'appétit                                                                                    ","appétit d'oiseau                                                            ","envie de connaître                                           ","il a de l'appétit","manque d'appétit                                                                                    ","soif de savoir                                                                            ","avoir l'appétit aiguisé                              ","qui stimule l'appétit","envie, désir, avidité, fringale, anorexie, boulimique, ogre, voracité, faim, soif"," "]
[null,null,51,"autre","nom     ",4,"part                          ","entre                         ","opposé                        ","second                        ","distinct                   ","étranger                      ","contrasté                     ","différent","d'autre part                                                                                        ","entre autre                                                                 ","différent                                                    ","l'un, l'autre","qui n'est pas la même chose                                                                         ","différent                                                                                 ","nuancé, autre                                        ","autre","distinct, disparate, inégal, opposé, contraire, divers, écart, contrasté, nuance, différent"," "]
[null,null,52,"dos","nom     ",4,"mur                           ","bon                           ","sac                           ","cuillère                      ","verso                      ","bosse                         ","chat                          ","derrière","être le dos au mur                                                                                  ","avoir bon dos                                                               ","sac à dos                                                    ","le dos de la cuillère","le contraire de la face                                                                             ","on l'a sur le dos                                                                         ","il fait le gros dos                                  ","au bas du dos !","échine, moelle, bosse, rachidien, voûté, derrière"," "]
[null,null,53,"appartement","nom     ",4,"fonction                      ","témoin                        ","plantes                       ","bouge                         ","adresse                    ","résidence                     ","logement                      ",null,"appartement de fonction                                                                             ","appartement témoin                                                          ","d'appartement                                                ","appartement minable","où se trouve son appartement                                                                        ","appartement chalet ou villa                                                               "," appartement",null,"demeure, pénates, intérieur, local, bouge, taudis, cambuse, baraque, loge, lieu, permis de séjour, domicile, résidence, adresse, home"," "]
[null,null,54,"avare","adjectif/nom",4,"fesse-mathieu                 ","intéressé                     ","amasser                       ","Molière                       ","rat                        ","cupide                        ","Harpagon                      ",null,"syn. d'avare (vx)                                                                                   ","syn. d'avare                                                                ","ce que fait l'avare                                          ","A écrit L'avare","syn. d'avare                                                                                        ","syn. d'avare                                                                              ","Personnage de Molière très avare                     ",null,"égoïste, intéressé, mercantile, rat, harpagon, grigou, économe, cupide, chiche, grippe-sou"," "]
[null,null,55,"agent","nom     ",4,"facteur                       ","intermédiaire                 ","double                        ","assurances                    ","artistique                 ","police                        ","secret                        ",null,"agent postal                                                                                        ","entre une direction et des usagers                                          ","agent double, espion                                         ","agent d'assurances","agent artistique (pour les stars)                                                                   ","agent de police                                                                           ","agent secret (espion)                                ",null,"employé, commis, délégué, gérant, homme de paille, intermédiaire, mandataire, police, assurance, circulation"," "]
[null,null,56,"dehors","prép.  ",4,"exotique                      ","étranger                      ","exclure                       ","expulsé                       ","extérieur                  ","sortir                        ","                              ",null,"lointain, du dehors                                                                                 ","d'ailleurs, de dehors                                                       ","mettre dehors                                                ","mis dehors","au dehors                                                                                           ","aller dehors                                                                              ","                                                     ",null,"exotique, étranger, exclure, expulsé, externe, extérieur"," "]
[null,null,57,"bâtir","verbe     ",4,"élever                        ","terrain                       ","fonder                        ","sable                         ","maison                     ","édifier                       ","construire                    ",null,"bâtir une villa                                                                                     ","terrain à bâtir                                                             ","construire les fondations                                    ","bâtir sur du sable (pas solide)","bâtir une villa                                                                                     ","construire                                                                                "," bâtir",null,"élever, édifier, entrepreneur, architecte, construire"," "]
[null,null,58,"aile","nom     ",4,"coup                          ","plomb                         ","protection                    ","gauche                        ","ange                       ","cuisse                        ","plume                         ","voler","avoir un coup dans l'aile (être diminué, ivre...                                                   ","avoir du plomb dans l'aile: être blessé                                     ","Se mettre sous l'aile de qqun                                ","l'aile gauche, l'aile droite (sport, politique)","il a des ailes                                                                                      ","l'aile ou la cuisse ?                                                                     ","... de l'aile d'un oiseau                            ","voler de ses propres ailes","élytre, diptère, plume, rémige, déployer, planer, voler, battre"," "]
[null,null,59,"commencer","verbe     ",4,"chaos                         ","Eve                           ","entamer                       ","fonder                        ","démarrer                   ","débuter                       ","                              ",null,"Au commencement, tout n'était que chaos et désert                                                   ","Personnage de la Genèse                                                     ","commencer                                                    ","commencer à faire qq chose","commencer à avancer                                                                                 ","commencer                                                                                 ","                                                     ",null,"entamer, entreprendre, se lancer, entrer, embarquer, débuter"," "]
[null,null,60,"affirmer","verbe     ",4,"avancer                       ","tranchant                     ","maintenir                     ","dire                          ","attester                   ","jurer                         ","prétendre                     ",null,"énoncer une affirmation                                                                             ","affirmation nette                                                           ","garder son avis                                              ","énoncer une affirmation","certifier une affirmation                                                                           ","affirmer solennellement                                                                   ","affirmer                                             ",null,"dire, attester, avancer, certifier, garantir, assurer, maintenir, tranchant, net, dogmatique, jurer, prétendre"," "]
[null,null,61,"accuser","verbe     ",5,"incriminer                    ","attaquer                      ","clouer                        ","dénoncer                      ","déférer                    ","dénigrer                      ","inculper                      ",null,"Mettre la faute sur qqun                                                                            ","Attaquer en justice                                                         ","Clouer au pilori, accuser                                    ","Donner le nom d'un coupable","Faire un procès                                                                                     ","Dire du mal de qqun                                                                       ","Accuser pour obtenir justice                         ",null,"incriminer, imputer, attaquer, assigner, déférer, mettre à l'index, clouer au pilori, dénoncer, calomnier, médire, diffamer, dénigrer, attaquer en justice,"," "]
[null,null,62,"agréable","adjectif   ",5,"gracieux","charmant","bon","gentil","sympathique","amène","délicieux","délectable",null,null,null,null,null,null,null,null,"gracieux, charmant, bon, gentil, sympathique, amène, délicieux, délectable, attractif, séduction, confort, charme, satisfaction, attrayant"," "]
[null,null,63,"ancre","nom     ",5,"grappin","branche","pointe","mouillage","bateau","jeter","lever",null,null,null,null,null,null,null,null,null,"grappin, branche, pointe, mouillage, bateau, jeter, lever"," "]
[null,null,64,"artificiel","adjectif   ",5,"factice","postiche",false,"fabriqué","frelaté","falsifié","illusoire","déguisé",null,null,null,null,null,null,null,null,"factice, postiche, faux, fabriqué, frelaté, falsifié, illusoire, déguisé, travesti, pas naturel"," "]
[null,null,65,"association","nom     ",5,"fédération","société","membre","club","allié","syndicat","union","mettreencommun",null,null,null,null,null,null,null,null,"fédération, société, membre, club, allié, syndicat, union, mettre en commun, partager, mettre ensemble"," "]
[null,null,66,"auberge","nom     ",5,"garni","table","débit","taverne","café","caveau","cabaret","brasserie",null,null,null,null,null,null,null,null,"garni, table, débit, taverne, café, caveau, cabaret, brasserie, pourboire, cantine, réfectoire, restaurant, hôtel"," "]
[null,null,67,"aventure","nom     ",5,"incident","épisode","accident","exploit","risques","péril","hasardeux",null,null,null,null,null,null,null,null,null,"incident, épisode, accident, exploit, risques, péril, hasardeux"," "]
[null,null,68,"bonté","nom     ",5,"générosité","largesse","obligeance","coeur","clémence","pitié","amabilité","gentillesse",null,null,null,null,null,null,null,null,"générosité, largesse, obligeance, coeur, clémence, pitié, amabilité, gentillesse, tolérance, tendresse, amour"," "]
[null,null,69,"bouteille","nom     ",5,"gourde","carafon","fiole","verre","cruche","col","goulot","bouchon",null,null,null,null,null,null,null,null,"gourde, carafon, fiole, verre, cruche, col, goulot, bouchon"," "]
[null,null,70,"brut","adjectif   ",5,"grossier","informe","malléché","inachevé","rudimentaire","maldégrossi",null,null,null,null,null,null,null,null,null,null,"grossier, informe, mal léché, inachevé, rudimentaire, mal dégrossi"," "]
[null,null,71,"capricieux","adjectif   ",5,"fantasque","léger","inconstant","lunatique","fou","insensé","changeant","diva",null,null,null,null,null,null,null,null,"fantasque, léger, inconstant, lunatique, fou, insensé, changeant, diva"," "]
[null,null,72,"combat","nom     ",5,"guerre","duel","pugilat","échauffourée","bataille","massacre","victoire","compétition",null,null,null,null,null,null,null,null,"guerre, duel, pugilat, échauffourée, bataille, massacre, victoire, compétition, boxe"," "]
[null,null,73,"coup","nom     ",5,"heurt","collision","soufflet","claque","poing","frapper","horion","fessée",null,null,null,null,null,null,null,null,"heurt, collision, soufflet, claque, poing, frapper, horion, fessée, voie de fait, volée"," "]
[null,null,74,"entier","adjectif   ",5,"fini","tout","intégral","totalité","remplir","complet","plein","complètement",null,null,null,null,null,null,null,null,"fini, tout, intégral, totalité, remplir, complet, plein, complètement"," "]
[null,null,75,"événement","nom     ",5,"fait","circonstance","aventure","occurrence","épisode","anecdote","hasard","péripétie",null,null,null,null,null,null,null,null,"fait, circonstance, aventure, occurrence, épisode, anecdote, hasard, péripétie, survenir, incident"," "]
[null,null,76,"acide","adjectif/nom",6,"mordant                       ","acerbe                        ","vert                          ","vinaigre                      ","piquant                    ","acétique                      ","aigrelet                      ",null,"Qui fait mal, qui pique, qui blesse                                                                 ","Une remarque acerbe qui fait mal                                            ","Goût d'un fruit vert                                         ","Acide ascorbique","qui pique comme de l'acide, qui blesse                                                              ","Nom d'un acide (vinaigre)                                                                 ","Au goût aigre, piquant                               ",null,"mordant, acerbe, suret, vert, vinaigré, acétique, piquant, âcre, aigrelet"," "]
[null,null,77,"ambassade","nom     ",6,"mission","représentation","chancellerie","consulat","diplomate","légation","attaché","émissaire",null,null,null,null,null,null,null,null,"mission, représentation, chancellerie, consulat, diplomate, légation, attaché, émissaire, courrier, valise"," "]
[null,null,78,"arrêt","nom     ",6,"intervalle","vacance","congé","pause","maladie","halte","entracte","coupure",null,null,null,null,null,null,null,null,"intervalle, vacance, congé, pause, maladie, halte, entracte, coupure, frein, interruption, stop"," "]
[null,null,79,"arroser","verbe     ",6,"irriguer","mouiller","baptiser","humecter","tremper","laver","bassiner","submerger",null,null,null,null,null,null,null,null,"irriguer, mouiller, baptiser, humecter, tremper, laver, bassiner, submerger, crue, mousson, déluge, doucher, imbiber, pluie, jet"," "]
[null,null,80,"atelier","nom     ",6,"laboratoire","officine","chantier","manufacture","usine","outils","garage","étau",null,null,null,null,null,null,null,null,"laboratoire, officine, chantier, manufacture, usine, outils, garage, étau, plan de travail"," "]
[null,null,81,"boire","verbe     ",6,"lamper","laper","étancher","apaiser","trinquer","siroter","flacon","pinte",null,null,null,null,null,null,null,null,"lamper, laper, étancher, apaiser, trinquer, siroter, flacon, pinte, rasade, absorber, avaler, soif"," "]
[null,null,82,"bouche","nom     ",6,"lèvre","gencive","gorge","palais","salive","cavité","dents","mâchoire",null,null,null,null,null,null,null,null,"lèvre, gencive, gorge, palais, salive, cavité, dents, mâchoire,langue, manger, mordre, parler"," "]
[null,null,83,"conduire","verbe     ",6,"mener","diriger","guider","piloter","promener","amener",null,null,null,null,null,null,null,null,null,null,"mener, diriger, guider, piloter, promener, amener"," "]
[null,null,84,"degré","nom     ",6,"marche","échelle","cran","gradation","pas","hauteur",null,null,null,null,null,null,null,null,null,null,"marche, échelle, cran, gradation, pas, hauteur"," "]
[null,null,85,"diamant","nom     ",6,"joyau","brillant","éclat","carat","facette","taille","rivière","perle",null,null,null,null,null,null,null,null,"joyau, brillant, éclat, carat, facette, taille, rivière, perle"," "]
[null,null,86,"dispenser","nom     ",6,"libérer","exonérer","laisser","dégager","exempter",null,null,null,null,null,null,null,null,null,null,null,"libérer, exonérer, laisser, dégager, exempter"," "]
[null,null,87,"durée","nom     ",6,"laps","continuation","existence","vie","âge","éternité","passager","continu",null,null,null,null,null,null,null,null,"laps, continuation, existence, vie, âge, éternité, passager, continu, longtemps, temps, court"," "]
[null,null,88,"eau","nom     ",6,"lame","surface","nappe","filet","rosée","larme","déluge","mer",null,null,null,null,null,null,null,null,"lame, surface, nappe, filet, rosée, larme, déluge, mer, sueur, cascade, bassin"," "]
[null,null,89,"échelle","nom     ",6,"montants","bras","degré","monter","cueillir","corde","barreau","double",null,null,null,null,null,null,null,null,"montants, bras, degré, monter, cueilli5r, corde, barreau, double"," "]
[null,null,90,"espagnol","adjectif   ",6,"junte","hidalgo","boléro","fandango","castagnettes","ibérique","hispanique",null,null,null,null,null,null,null,null,null,"junte, hidalgo, boléro, fandango, castagnettes, ibérique, hispanique"," "]
[null,null,91,"amour","nom     ",7,"passion","flamme","caprice","conquête","DonJuan","ardent","brûlant","fougue",null,null,null,null,null,null,null,null,"passion, flamme, caprice, conquête, Don Juan, ardent, brûlant, fougue, passade, jalousie, adultère, fidèle, sentiment, chagrin"," "]
[null,null,92,"arracher","verbe     ",7,"ôter","enlever","extirper","délivrer","desceller","déterrer","extraire","dent",null,null,null,null,null,null,null,null,"ôter, enlever, extirper, délivrer, desceller, déterrer, extraire, dent, arbre, déraciner"," "]
[null,null,93,"avis","nom     ",7,"parti","cause","prétendre","croyance","estimation","appréciation","opinion",null,null,null,null,null,null,null,null,null,"parti, cause, prétendre, croyance, estimation, appréciation, opinion"," "]
[null,null,94,"bagne","nom     ",7,"Papillon","galère","chiourme","chaîne","Guyanne","travauxforcés","prison","forçat",null,null,null,null,null,null,null,null,"Papillon, galère, chiourme, chaîne, Guyanne, travaux forcés, prison, forçat"," "]
[null,null,95,"ballon","nom     ",7,"nacelle","parachute","lest","gonfler","captif","ascension","A.Piccard","aérostat",null,null,null,null,null,null,null,null,"nacelle, parachute, lest, gonfler, captif, ascension, A. Piccard, aérostat"," "]
[null,null,96,"base","nom     ",7,"pied","appui","socle","support","triangle","fondement","début","essentiel",null,null,null,null,null,null,null,null,"pied, appui, socle, support, triangle, fondement, début, essentiel, fondation"," "]
[null,null,97,"café","nom     ",7,"passer","filtrer","moudre","boire","tasse","sucre","marc","remuer",null,null,null,null,null,null,null,null,"passer, filtrer, moudre, boire, tasse, sucre, marc, remuer, moka"," "]
[null,null,98,"caractère","nom     ",7,"nature","tempérament","volonté","sociabilité","énergique","tatillon","manièred'être","savoir-être",null,null,null,null,null,null,null,null,"nature, tempérament, volonté, sociabilité, énergique, tatillon, manière d'être, savoir-être, convivialité"," "]
[null,null,99,"caricature","nom     ",7,"parodie","croquer","pocher","fantaisie","déformation","exagération","ironie","dessin",null,null,null,null,null,null,null,null,"parodie, croquer, pocher, fantaisie, déformation, exagération, ironie, dessin, humour"," "]
[null,null,100,"champignon","nom     ",7,"pied","chapeau","mousse","forêt","oronge","comestible","tue-mouches","vénéneux",null,null,null,null,null,null,null,null,"pied, chapeau, mousse, forêt, oronge, comestible, tue-mouches, vénéneux"," "]
[null,null,101,"cravate","nom     ",7,"noeud","bavette","costume","complet","porter","cou",null,null,null,null,null,null,null,null,null,null,"noeud, bavette, costume, complet, porter, cou"," "]
[null,null,102,"défaut","nom     ",7,"péché","abus","excès","tare","vice","inconvénient","imperfection",null,null,null,null,null,null,null,null,null,"péché, abus, excès, tare, vice, inconvénient, imperfection"," "]
[null,null,103,"demande","nom     ",7,"pétition","exigence","postulation","quête","sollicitation","voeu","souhait","prière",null,null,null,null,null,null,null,null,"pétition, exigence, postulation, quête, sollicitation, voeu, souhait, prière"," "]
[null,null,104,"donner","verbe     ",7,"octroyer","concéder","débourser","allouer","décerner","doter","distribuer",null,null,null,null,null,null,null,null,null,"octroyer, concéder, débourser, allouer, décerner, doter, distribuer"," "]
[null,null,105,"espion","nom     ",7,"mouchard","mouton","balance","cafard","dénonciateur","agent","traître","délateur",null,null,null,null,null,null,null,null,"mouchard, mouton, balance, cafard, dénonciateur, agent, traître, délateur"," "]
[null,null,106,"abri","nom     ",8,"terrier                       ","trou de souris                ","cachette                      ","asile                         ","refuge                     ","protection                    ","Avant-toit                    ",null,"Abri pour lapin                                                                                     ","Abri pour souris                                                            ","S'abrite de la vue des autres                                ","abri pour personne en danger","abri de montagne                                                                                    ","l'abri protège                                                                            ","Abri contre la plue                                  ",null,"refuge, asile, cachette, terrier, trou, gîte, rempart, caverne, défense, repaire, retraite, protection"," "]
[null,null,107,"affiche","nom     ",8,"placard                       ","publicité                     ","mur                           ","arracher                      ","réclame                    ","sandwich                      ","colleur                       ",null,"placard publicitaire  affiche                                                                      ","Par affichage                                                               ","pour coller des affiches                                     ","enlever ou décoller une affiche","Publicité                                                                                           ","Homme sandwich qui promène des affiches                                                   ","colleur d'affiches                                   ",null,"placard, annonce, publicité, mur, arracher, message, programme, réclame, sandwich, colleur"," "]
[null,null,108,"curieux","adjectif   ",8,"graine                        ","espion                        ","sondeur                       ","indiscret                     ","questionner                ","chercheur                     ","intéressé                     ",null,"graine de curieux en paquet bleu !                                                                  ","voir sans être vu                                                           ","cherche des renseignement difficiles à trouver               ","trop curieux","faire preuve de curiosité                                                                           ","la curiosité est son métier                                                               ","curieux au bon sens du terme                         ",null,"chercheur, enquêteur, explorateur, sondeur, espion, guetter, farfouiller, questionner, avide, intéressé"," "]
[null,null,109,"aider","verbe     ",8,"seconder","secourir","assister","soutenir","prêtermainforte","portersecours","donneruncoupdemain",null,null,null,null,null,null,null,null,null,"seconder, secourir, assister, soutenir, prêter main forte, porter secours, donner un coup de main"," "]
[null,null,110,"armoire","nom     ",8,"placard","vitrine","bibliothèque","étagère","penderie","tiroir","commode","buffet",null,null,null,null,null,null,null,null,"placard, vitrine, bibliothèque, étagère, penderie, tiroir, commode, buffet"," "]
[null,null,111,"bain","nom     ",8,"plage","thermes","pieds","immersion","cabine","caleçon","peignoir","douche",null,null,null,null,null,null,null,null,"plage, thermes, pieds, immersion, cabine, caleçon, peignoir, douche, piscine, mer, rivière, natation"," "]
[null,null,112,"bicyclette","nom     ",8,"pignon","rayon","roulement","valve","chambre","pédale","frein","guidon",null,null,null,null,null,null,null,null,"pignon, rayon, roulement, valve, chambre, pédale, frein, guidon, machine, cycle, vélo"," "]
[null,null,113,"choisir","verbe     ",8,"prendre","trier","préférer","élite","sélectionner","adopter","acheter",null,null,null,null,null,null,null,null,null,"prendre, trier, préférer, élite, sélectionner, adopter, acheter"," "]
[null,null,114,"détail","nom     ",8,"portion","élément","morceau","particule","petitepartie","curiosité","minutie","sens",null,null,null,null,null,null,null,null,"portion, élément, morceau, particule, petite partie, curiosité, minutie, sens, fraction"," "]
[null,null,115,"diviser","nom     ",8,"sectionner","couper","trancher","désassembler","disloquer","séparer","partager","morceler",null,null,null,null,null,null,null,null,"sectionner, couper, trancher, désassembler, disloquer, séparer, partager, morceler, décomposer"," "]
[null,null,116,"écraser","verbe     ",8,"piler","presser","fouler","poudre","plat","moulin","pilon","hachis",null,null,null,null,null,null,null,null,"piler, presser, fouler, poudre, plat, moulin, pilon, hachis, broyer, pulvérisation, miette, étaler"," "]
[null,null,117,"essuyer","verbe     ",8,"polir","lisser","balayer","nettoyer","bouchonner","gratter","décrasser","aléser",null,null,null,null,null,null,null,null,"polir, lisser, balayer, nettoyer, bouchonner, gratter, décrasser, aléser, limer, débarbouiller, frotter, sécher"," "]
[null,null,118,"étonné","adjectif   ",8,"saisi","interdit","ébahi","pétrifié","surpris","stupéfait","hébété","émerveillé",null,null,null,null,null,null,null,null,"saisi, interdit, ébahi, pétrifié, surpris, stupéfait, hébété, émerveillé"," "]
[null,null,119,"frotter","verbe     ",8,"polir","lisser","balayer","nettoyer","bouchonner","gratter","décrasser","aléser",null,null,null,null,null,null,null,null,"polir, lisser, balayer, nettoyer, bouchonner, gratter, décrasser, aléser, limer, débarbouiller, sécher, essuyer"," "]
[null,null,120,"s'asseoir","verbe     ",8,"se poser","se camper sur","trôner","se placer","le séant","les fesses","le siège","s'accroupir",null,null,null,null,null,null,null,null,"se poser, se camper sur, trôner, se placer, le séant, les fesses, le siège, s'accroupir"," "]
[null,null,121,"accompagner","verbe     ",9,"marcher                       ","conduire                      ","suivre                        ","ramener                       ","escorter                   ","faire route avec              ","                              ",null,"aller avec quelqu'un, avancer                                                                       ","mener quelqu'un quelque part, aller avec lui                                ","Suivre les progrès de quelqu'un, l'aider à avancer           ","Accompagner qqun vers un endroit sûr","accompagner quelqu'un pour le protéger                                                              ","Avancer avec qqun                                                                         ","                                                     ",null,"suivre, conduire, marcher, ramener, faire route avec, escorter"," "]
[null,null,122,"ail","nom     ",9,"tête","gousse","pistou","Provence","Italie","vinaigre","oignon",null,null,null,null,null,null,null,null,null,"tête, gousse, pistou, Provence, Italie, vinaigre, oignon"," "]
[null,null,123,"appui","nom     ",9,"soutien","renfort","aide","secours","tuteur","étayer","épauler",null,null,null,null,null,null,null,null,null,"soutien, renfort, aide, secours, tuteur, étayer, épauler"," "]
[null,null,124,"arbre","nom     ",9,"taille","plant","tête","cime","buisson","mai","bois","essence",null,null,null,null,null,null,null,null,"taille, plant, tête, cime, buisson, mai, bois, essence, exotique, pied, noeud, écorce, tronc, branches, feuilles"," "]
[null,null,125,"argent","nom     ",9,"titre","poinçon","change","artiche","pèse","blé","thune","rond",null,null,null,null,null,null,null,null,"titre, poinçon, change, artiche, pèse, blé, thune, rond, sou, monnaie, billet"," "]
[null,null,126,"astre","nom     ",9,"signe","zodiaque","soleil","comète","lever","éclipse","briller","constellation",null,null,null,null,null,null,null,null,"signe, zodiaque, soleil, comète, lever, éclipse, briller, constellation, planète, satellite, étoile"," "]
[null,null,127,"cave","nom     ",9,"souterrain","silo","réserve","nuit","soupirail","sous-sol","casiers","étagères",null,null,null,null,null,null,null,null,"souterrain, silo, réserve, nuit, soupirail, sous-sol, casiers, étagères, bouteilles, vin"," "]
[null,null,128,"chant","nom     ",9,"timbre","portée","accent","ramage","mélodie","air","hymne","solo",null,null,null,null,null,null,null,null,"timbre, portée, accent, ramage, mélodie, air, hymne, solo, couplet, refrain"," "]
[null,null,129,"croire","verbe     ",9,"soupçonner","admettre","agréer","avaler","sefigurer","supposer",null,null,null,null,null,null,null,null,null,null,"soupçonner, admettre, agréer, avaler, se figurer, supposer"," "]
[null,null,130,"échantillon","nom     ",9,"spécimen","modèle","type","exemple","exposition","foire",null,null,null,null,null,null,null,null,null,null,"spécimen, modèle, type, exemple, exposition, foire"," "]
[null,null,131,"égal","adjectif   ",9,"semblable","pareil","tel","équivalent","isométrique","conforme","même",null,null,null,null,null,null,null,null,null,"semblable, pareil, tel, équivalent, isométrique, conforme, même"," "]
[null,null,132,"ennui","nom     ",9,"spleen","dégoût","dépit","agacement","désagrément","mélancolie","tourment","tristesse",null,null,null,null,null,null,null,null,"spleen, dégoût, dépit, agacement, désagrément, mélancolie, tourment, tristesse, impatience"," "]
[null,null,133,"entrée","nom     ",9,"seuil","pas","irruption","incursion","introduction","accès","ouverture","passage",null,null,null,null,null,null,null,null,"seuil, pas, irruption, incursion, introduction, accès, ouverture, passage, porte"," "]
[null,null,134,"esclavage","nom     ",9,"servitude","ilotisme","serf","négrier","affranchissement","Spartacus","traite","prostitution",null,null,null,null,null,null,null,null,"servitude, ilotisme, serf, négrier, affranchissement, Spartacus, traite, prostitution, drogue, fers, asservissement"," "]
[null,null,135,"étonnant","adjectif   ",9,"singulier","anormal","choquant","unique","particulier","miraculeux","merveilleux","curieux",null,null,null,null,null,null,null,null,"singulier, anormal, choquant, unique, particulier, miraculeux, merveilleux, curieux, paradoxal, incroyable, magicien, étrange"," "]
[null,null,136,"avocat","nom     ",10,"toque","serviette","dossier","client","débat","bâtonnier","procès","partie",null,null,null,null,null,null,null,null,"toque, serviette, dossier, client, débat, bâtonnier, procès, partie, barre, plaidoirie, défense"," "]
[null,null,137,"banal","adjectif   ",10,"vulgaire","pauvre","connu","usé","sans originalité","vieux","rebattu","ordinaire",null,null,null,null,null,null,null,null,"vulgaire, pauvre, connu, usé, sans originalité, vieux, rebattu, ordinaire, simple, médiocre, commun"," "]
[null,null,138,"canalisation","nom     ",10,"tuyau","caniveau","bouche","compteur","canal","gouttière","égout","conduite",null,null,null,null,null,null,null,null,"tuyau, caniveau, bouche, compteur, canal, gouttière, égout, conduite, épuration"," "]
[null,null,139,"changement","nom     ",10,"virement","modification","mutation","transformation","métamorphose","mue","variation","évolution",null,null,null,null,null,null,null,null,"virement, modification, mutation, transformation, métamorphose, mue, variation, évolution, innovation"," "]
[null,null,140,"contrat","nom     ",10,"traité","clause","condition","affaire","marché","conclure","négocier","engagement",null,null,null,null,null,null,null,null,"traité, clause, condition, affaire, marché, conclure, négocier, engagement"," "]
[null,null,141,"courageux","adjectif   ",10,"vaillant","téméraire","intrépide","lion","bouillant","valeureux","brave",null,null,null,null,null,null,null,null,null,"vaillant, téméraire, intrépide, lion, bouillant, valeureux, brave"," "]
[null,null,142,"craindre","verbe     ",10,"trembler","frissonner","s'alarmer","êtreterrifié","appréhender","redouter","avoirpeur",null,null,null,null,null,null,null,null,null,"trembler, frissonner, s'alarmer, être terrifié, appréhender, redouter, avoir peur"," "]
[null,null,143,"danser","verbe     ",10,"tricoter","balancer","pointes","setrémousser","sauter","valser","bal",null,null,null,null,null,null,null,null,null,"tricoter, balancer, pointes, se trémousser, sauter, valser, bal"," "]
[null,null,144,"étoffe","nom     ",10,"cotonnade","trame","lé","pièce","coudre","crêper","froisser","repasser",null,null,null,null,null,null,null,null,"cotonnade, trame, lé, pièce, coudre, crêper, froisser, repasser, lainage, tissus, soierie, lingerie, coupon"," "]
[null,null,145,"exemple","nom     ",10,"type","idéal","image","dessin","schéma","échantillon","servir","patron",null,null,null,null,null,null,null,null,"type, idéal, image, dessin, schéma, échantillon, servir, patron, étalon, spécimen, modèle"," "]
[null,null,146,"exposition","nom     ",10,"galerie","oeuvre","catalogue","vernissage","art","présentation",null,null,null,null,null,null,null,null,null,null,"galerie, oeuvre, catalogue, vernissage, art, présentation"," "]
[null,null,147,"facile","adjectif   ",10,"aisé","réalisable","simple","accessible","commode","sanseffort","surdesroulettes",null,null,null,null,null,null,null,null,null,"aisé, réalisable, simple, accessible, commode, sans effort, sur des roulettes"," "]
[null,null,148,"imprévu","adjectif/nom",10,"toutàcoup","coupdethéâtre","inopinément","soudain","brusque","brutalement","surprise","inattendu",null,null,null,null,null,null,null,null,"tout à coup, coup de théâtre, inopinément, soudain, brusque, brutalement, surprise, inattendu"," "]
[null,null,149,"lampe","nom     ",10,"falot","veilleuse","phare","verre","globe","abat-jour","éclairage","ampoule",null,null,null,null,null,null,null,null,"falot, veilleuse, phare, verre, globe, abat-jour, éclairage, ampoule"," "]
[null,null,150,"paquebot","nom     ",10,"voyage","billet","bagage","douane","steward","cabine","traversée","océan",null,null,null,null,null,null,null,null,"voyage, billet, bagage, douane, steward, cabine, traversée, océan, France, embarquer, Titanic"," "]
[null,null,151,"fenêtre","nom     ",11,"barreau","jour","hublot","rideau","baie","soupirail","vitre","fermer",null,null,null,null,null,null,null,null,"barreau, jour, hublot, rideau, baie, soupirail, vitre, fermer, persienne, carreau, vasistas"," "]
[null,null,152,"feu","nom     ",11,"fléau","Vulcain","vif","eau","sorcière","chauffage","sinistre","torréfier",null,null,null,null,null,null,null,null,"fléau, Vulcain, vif, eau, sorcière, chauffage, sinistre, torréfier, ardent, flamme, braise, étincelle, allumette"," "]
[null,null,153,"feuille","nom     ",11,"face","côte","ombre","verdure","aiguille","branche","arbre","queue",null,null,null,null,null,null,null,null,"face, côte, ombre, verdure, aiguille, branche, arbre, queue, flétrir, automne, nervure, morte"," "]
[null,null,154,"fleuve","nom     ",11,"fil","lit","quai","fond","bras","bord","rivière","berge",null,null,null,null,null,null,null,null,"fil, lit, quai, fond, bras, bord, rivière, berge, source, mer, delta, port, crue"," "]
[null,null,155,"froid","adjectif/n ",11,"crevasse","fourrure","glace","hiver","loup","pénétrer","geler","congélateur",null,null,null,null,null,null,null,null,"crevasse, fourrure, glace, hiver, loup, pénétrer, geler, congélateur"," "]
[null,null,156,"guerre","nom     ",11,"campagne","opération","tactique","stratégie","armistice","expédition","hostilités","militaire",null,null,null,null,null,null,null,null,"campagne, opération, tactique, stratégie, armistice, expédition, hostilités, militaire, adversaire, belligérant, combat, batailles"," "]
[null,null,157,"habitude","nom     ",11,"familier","usuel","courant","tradition","usage","mode","routine","dada",null,null,null,null,null,null,null,null,"familier, usuel, courant, tradition, usage, mode, routine, dada, marotte, manie, tic, coutume"," "]
[null,null,158,"image","nom     ",11,"effigie","gravure","modèle","silhouette","icône","estampe","dessin","représentation",null,null,null,null,null,null,null,null,"effigie, gravure, modèle, silhouette, icône, estampe, dessin, représentation, BD"," "]
[null,null,159,"immobile","adjectif   ",11,"ancré","vissé","invariable","sédentaire","planter","stable","solide","immuable",null,null,null,null,null,null,null,null,"ancré, vissé, invariable, sédentaire, planter, stable, solide, immuable"," "]
[null,null,160,"jardin","nom     ",11,"greffer","tailler","bordure","épouvantail","parterre","cultiver","fleurslégumes","bêcher",null,null,null,null,null,null,null,null,"greffer, tailler, bordure, épouvantail, parterre, cultiver, fleurs légumes, bêcher, planter, récolter"," "]
[null,null,161,"journal","nom     ",11,"feuille","article","sport","entrefilet","reporter","kiosque","abonné","tirage",null,null,null,null,null,null,null,null,"feuille, article, sport, entrefilet, reporter, kiosque, abonné, tirage, déplier, lire, informations, télévisé, manchette"," "]
[null,null,162,"liberté","nom     ",11,"charte","émancipation","démocratie","détacher","affranchir","indépendance","autonomie","relâcher",null,null,null,null,null,null,null,null,"charte, émancipation, démocratie, détacher, affranchir, indépendance, autonomie, relâcher"," "]
[null,null,163,"main","nom     ",11,"carpe","creux","coup","geste","poignée","droite","signe","gauche",null,null,null,null,null,null,null,null,"carpe, creux, coup, geste, poignée, droite, signe, gauche, serrer, tenir, tendre, doigt, paume, patte, gant, poing"," "]
[null,null,164,"oeil","nom     ",11,"globe","orbite","tachejaune","conjonctive","cornée","cataracte","Dalton","clin",null,null,null,null,null,null,null,null,"globe, orbite, tache jaune, conjonctive, cornée, cataracte, Dalton, clin, larme, rétine, paupière"," "]
[null,null,165,"outil","nom     ",11,"balai","balance","attirail","matériel","ciseau","burin","marteau","clé",null,null,null,null,null,null,null,null,"balai, balance, attirail, matériel, ciseau, burin, marteau, clé, crochet, esse, fil, foret, maillet, rossignol"," "]
[null,null,166,"faim","nom     ",12,"manque","jeûne","disette","mourir","assouvir","rassasier","vivres","ventre",null,null,null,null,null,null,null,null,"manque, jeûne, disette, mourir, assouvir, rassasier, vivres,ventre, estomac, diète, appétit"," "]
[null,null,167,"famille","nom     ",12,"smala","générations","sang","foyer","ménage","descendants","généalogie","parents",null,null,null,null,null,null,null,null,"smala, générations, sang, foyer, ménage, descendants, généalogie, parents, cousinage, mère"," "]
[null,null,168,"fermer","verbe     ",12,"palissade","barrière","porte","condamner","étancher","cerner","cadenasser","obturer",null,null,null,null,null,null,null,null,"palissade, barrière, porte, condamner, étancher, cerner, cadenasser, obturer, clôturer"," "]
[null,null,169,"fin","nom     ",12,"morale","dénouement","aboutissement","résultat","terme","déclin","terminer","dernier",null,null,null,null,null,null,null,null,"morale, dénouement, aboutissement, résultat, terme, déclin, terminer, dernier, achèvement"," "]
[null,null,170,"forêt","nom     ",12,"massif","trouée","sentier","parc","savane","vierge","abattage","bosquet",null,null,null,null,null,null,null,null,"massif, trouée, sentier, parc, savane, vierge, abattage, bosquet, essence, buisson, ,arbre, orée, clairière"," "]
[null,null,171,"forme","nom     ",12,"profil","face","dessus","relief","gabarit","figure","dessin","géométrie",null,null,null,null,null,null,null,null,"profil, face, dessus, relief, gabarit, figure, dessin, géométrie, silhouette, contour, polygone"," "]
[null,null,172,"fromage","nom     ",12,"lait","croûte","frais","ramequin","crème","sel","pizza","chèvre",null,null,null,null,null,null,null,null,"lait, croûte, frais, ramequin, crème, sel, pizza, chèvre, gratiner, pâte molle"," "]
[null,null,173,"gardien","nom     ",12,"surveillant","cerbère","concierge","sentinelle","geôlier","maton","veiller","piscine",null,null,null,null,null,null,null,null,"surveillant, cerbère, concierge, sentinelle, geôlier, maton, veiller, piscine"," "]
[null,null,174,"homme","nom     ",12,"prochain","quidam","pékin","mortel","individu","humains","personne","quelqu'un",null,null,null,null,null,null,null,null,"prochain, quidam, pékin, mortel, individu, humains, personne, quelqu'un, semblable"," "]
[null,null,175,"inconnu","adjectif   ",12,"inexploré","voilé","mystérieux","caché","ignoré","obscur","incognito",null,null,null,null,null,null,null,null,null,"inexploré, voilé, mystérieux, caché, ignoré, obscur, incognito"," "]
[null,null,176,"inutile","adjectif   ",12,"stérile","périmé","sanseffet","superflu","inefficace","vain",null,null,null,null,null,null,null,null,null,null,"stérile, périmé, sans effet, superflu, inefficace, vain"," "]
[null,null,177,"liquide","nom     ",12,"refluer","goutter","infuser","étancher","sécréter","fluide","clair","pur",null,null,null,null,null,null,null,null,"refluer, goutter, infuser, étancher, sécréter, fluide, clair, pur, couler, eau, jus"," "]
[null,null,178,"liste","nom     ",12,"relevé","programme","suite","menu","série","catalogue","dresser","recenser",null,null,null,null,null,null,null,null,"relevé, programme, suite, menu, série, catalogue, dresser, recenser, inventaire"," "]
[null,null,179,"métier","nom     ",12,"occupation","fonction","qualité","pratiquer","collègue","chef","contremaître","travail",null,null,null,null,null,null,null,null,"occupation, fonction, qualité, pratiquer, collègue, chef, contremaître, travail, salaire, profession"," "]
[null,null,180,"nez","nom     ",12,"trompe","cornet","aquilin","sentir","mouchoir","fosse","bout","museau",null,null,null,null,null,null,null,null,"trompe, cornet, aquilin, sentir, mouchoir, fosse, bout, museau, narine, groin, nasillard"," "]
[null,null,181,"barre","nom     ",13,"bâton                         ","coup                          ","douche                        ","lambourde                     ","traverse                   ","tringle                       ","parallèles                    ",null,"barre en bois                                                                                       ","coup de barre                                                               ","barre de douche                                              ","barre en bois pour la toiture","grosse barre de bois pour asseoir les rails des trains                                              ","barre à rideaux                                                                           ","barres parallèles pour la gymnastique                ",null,"bâton, tringle, traverse, latte, lambourde"," "]
[null,null,182,"étranger","adjectif/nom",13,"asile                         ","barbare                       ","passeport                     ","langue                        ","émigrer                    ","exotisme                      ","importer                      ",null,"requérant d'asile                                                                                   ","étranger, qu'on ne comprend pas, qui nous choque                            ","pour aller à l'étranger                                      ","langue étrangère","partir s'établir à l'étranger                                                                       ","charme des pays lointains                                                                 ","acheter des marchandises à l'étranger                ",null,"barbare, colon, cosmopolite, passeport, vacances, immigrant, asile, exotique, autre, différence, importé"," "]
[null,null,183,"champion","nom     ",13,"monde","tournoi","titre","ceinture","Queen","olympique","premier",null,null,null,null,null,null,null,null,null,"monde, tournoi, titre, ceinture, Queen, olympique, premier"," "]
[null,null,184,"famille","nom     ",13,"esprit","vie","branche","ressemblance","père","nom","air",null,null,null,null,null,null,null,null,null,"esprit, vie, branche, ressemblance, père, nom, air"," "]
[null,null,185,"marteau","nom     ",13,"fou","outil","oreille","Merlin","requin","manche","masse","clou",null,null,null,null,null,null,null,null,"fou, outil, oreille, Merlin, requin, manche, masse, clou"," "]
[null,null,186,null,null,null,null,null,null,null,null,null,null,null,null,null,null,null,null,null,null,null,null," "]
[null,null,187,null,null,null,null,null,null,null,null,null,null,null,null,null,null,null,null,null,null,null,null," "]
[null,null,188,null,null,null,null,null,null,null,null,null,null,null,null,null,null,null,null,null,null,null,null," "]
[null,null,189,null,null,null,null,null,null,null,null,null,null,null,null,null,null,null,null,null,null,null,null," "]
[null,null,190,null,null,null,null,null,null,null,null,null,null,null,null,null,null,null,null,null,null,null,null," "]
[null,null,191,null,null,null,null,null,null,null,null,null,null,null,null,null,null,null,null,null,null,null,null," "]
[null,null,192,null,null,null,null,null,null,null,null,null,null,null,null,null,null,null,null,null,null,null,null," "]
[null,null,193,null,null,null,null,null,null,null,null,null,null,null,null,null,null,null,null,null,null,null,null," "]
[null,null,194,null,null,null,null,null,null,null,null,null,null,null,null,null,null,null,null,null,null,null,null," "]
[null,null,195,null,null,null,null,null,null,null,null,null,null,null,null,null,null,null,null,null,null,null,null," "]
[null,null,196,null,null,null,null,null,null,null,null,null,null,null,null,null,null,null,null,null,null,null,null," "]
[null,null,197,null,null,null,null,null,null,null,null,null,null,null,null,null,null,null,null,null,null,null,null," "]
[null,null,198,null,null,null,null,null,null,null,null,null,null,null,null,null,null,null,null,null,null,null,null," "]
[null,null,199,null,null,null,null,null,null,null,null,null,null,null,null,null,null,null,null,null,null,null,null," "]
[null,null,200,null,null,null,null,null,null,null,null,null,null,null,null,null,null,null,null,null,null,null,null," "]
[null,null,null,null,null,null,null,null,null,null,null,null,null,null,null,null,null,null,null,null,null,null,null," "]
[null,null,null,null,null,null,null,null,null,null,null,null,null,null,null,null,null,null,null,null,null,null,null," "]
[null,null,null,null,null,null,null,null,null,null,null,null,null,null,null,null,null,null,null,null,null,null,null," "]
[null,null,null,null,null,null,null,null,null,null,null,null,null,null,null,null,null,null,null,null,null,null,null," "]
[null,null,null,null,null,null,null,null,null,null,null,null,null,null,null,null,null,null,null,null,null,null,null," "]
[null,null,null,null,null,null,null,null,null,null,null,null,null,null,null,null,null,null,null,null,null,null,null," "]
[null,null,null,null,null,null,null,null,null,null,null,null,null,null,null,null,null,null,null,null,null,null,null," "]
[null,null,null,null,null,null,null,null,null,null,null,null,null,null,null,null,null,null,null,null,null,null,null," "]
[null,null,null,null,null,null,null,null,null,null,null,null,null,null,null,null,null,null,null,null,null,null,null," "]
[null,null,null,null,null,null,null,null,null,null,null,null,null,null,null,null,null,null,null,null,null,null,null," "]
[null,null,null,null,null,null,null,null,null,null,null,null,null,null,null,null,null,null,null,null,null,null,null," "]
[null,null,null,null,null,null,null,null,null,null,null,null,null,null,null,null,null,null,null,null,null,null,null," "]
[null,null,null,null,null,null,null,null,null,null,null,null,null,null,null,null,null,null,null,null,null,null,null," "]
[null,null,null,null,null,null,null,null,null,null,null,null,null,null,null,null,null,null,null,null,null,null,null," "]
[null,null,null,null,null,null,null,null,null,null,null,null,null,null,null,null,null,null,null,null,null,null,null," "]
[null,null,null,null,null,null,null,null,null,null,null,null,null,null,null,null,null,null,null,null,null,null,null," "]
[null,null,null,null,null,null,null,null,null,null,null,null,null,null,null,null,null,null,null,null,null,null,null," "]
[null,null,null,null,null,null,null,null,null,null,null,null,null,null,null,null,null,null,null,null,null,null,null," "]
[null,null,null,null,null,null,null,null,null,null,null,null,null,null,null,null,null,null,null,null,null,null,null," "]
[null,null,null,null,null,null,null,null,null,null,null,null,null,null,null,null,null,null,null,null,null,null,null," "]
[null,null,null,null,null,null,null,null,null,null,null,null,null,null,null,null,null,null,null,null,null,null,null," "]
[null,null,null,null,null,null,null,null,null,null,null,null,null,null,null,null,null,null,null,null,null,null,null," "]
[null,null,null,null,null,null,null,null,null,null,null,null,null,null,null,null,null,null,null,null,null,null,null," "]
[null,null,null,null,null,null,null,null,null,null,null,null,null,null,null,null,null,null,null,null,null,null,null," "]
[null,null,null,null,null,null,null,null,null,null,null,null,null,null,null,null,null,null,null,null,null,null,null," "]
[null,null,null,null,null,null,null,null,null,null,null,null,null,null,null,null,null,null,null,null,null,null,null," "]
[null,null,null,null,null,null,null,null,null,null,null,null,null,null,null,null,null,null,null,null,null,null,null," "]
[null,null,null,null,null,null,null,null,null,null,null,null,null,null,null,null,null,null,null,null,null,null,null," "]
[null,null,null,null,null,null,null,null,null,null,null,null,null,null,null,null,null,null,null,null,null,null,null," "]
[null,null,null,null,null,null,null,null,null,null,null,null,null,null,null,null,null,null,null,null,null,null,null," "]
[null,null,null,null,null,null,null,null,null,null,null,null,null,null,null,null,null,null,null,null,null,null,null," "]
[null,null,null,null,null,null,null,null,null,null,null,null,null,null,null,null,null,null,null,null,null,null,null," "]
[null,null,null,null,null,null,null,null,null,null,null,null,null,null,null,null,null,null,null,null,null,null,null," "]
[null,null,null,null,null,null,null,null,null,null,null,null,null,null,null,null,null,null,null,null,null,null,null," "]
[null,null,null,null,null,null,null,null,null,null,null,null,null,null,null,null,null,null,null,null,null,null,null," "]
[null,null,null,null,null,null,null,null,null,null,null,null,null,null,null,null,null,null,null,null,null,null,null," "]
[null,null,null,null,null,null,null,null,null,null,null,null,null,null,null,null,null,null,null,null,null,null,null," "]
[null,null,null,null,null,null,null,null,null,null,null,null,null,null,null,null,null,null,null,null,null,null,null," "]
[null,null,null,null,null,null,null,null,null,null,null,null,null,null,null,null,null,null,null,null,null,null,null," "]
[null,null,null,null,null,null,null,null,null,null,null,null,null,null,null,null,null,null,null,null,null,null,null," "]
[null,null,null,null,null,null,null,null,null,null,null,null,null,null,null,null,null,null,null,null,null,null,null," "]
[null,null,null,null,null,null,null,null,null,null,null,null,null,null,null,null,null,null,null,null,null,null,null," "]
[null,null,null,null,null,null,null,null,null,null,null,null,null,null,null,null,null,null,null,null,null,null,null," "]
[null,null,null,null,null,null,null,null,null,null,null,null,null,null,null,null,null,null,null,null,null,null,null," "]
[null,null,null,null,null,null,null,null,null,null,null,null,null,null,null,null,null,null,null,null,null,null,null," "]
[null,null,null,null,null,null,null,null,null,null,null,null,null,null,null,null,null,null,null,null,null,null,null," "]
[null,null,null,null,null,null,null,null,null,null,null,null,null,null,null,null,null,null,null,null,null,null,null," "]
[null,null,null,null,null,null,null,null,null,null,null,null,null,null,null,null,null,null,null,null,null,null,null," "]
[null,null,null,null,null,null,null,null,null,null,null,null,null,null,null,null,null,null,null,null,null,null,null," "]
[null,null,null,null,null,null,null,null,null,null,null,null,null,null,null,null,null,null,null,null,null,null,null," "]
[null,null,null,null,null,null,null,null,null,null,null,null,null,null,null,null,null,null,null,null,null,null,null," "]
[null,null,null,null,null,null,null,null,null,null,null,null,null,null,null,null,null,null,null,null,null,null,null," "]
[null,null,null,null,null,null,null,null,null,null,null,null,null,null,null,null,null,null,null,null,null,null,null," "]
[null,null,null,null,null,null,null,null,null,null,null,null,null,null,null,null,null,null,null,null,null,null,null," "]
[null,null,null,null,null,null,null,null,null,null,null,null,null,null,null,null,null,null,null,null,null,null,null," "]
[null,null,null,null,null,null,null,null,null,null,null,null,null,null,null,null,null,null,null,null,null,null,null," "]
[null,null,null,null,null,null,null,null,null,null,null,null,null,null,null,null,null,null,null,null,null,null,null," "]
[null,null,null,null,null,null,null,null,null,null,null,null,null,null,null,null,null,null,null,null,null,null,null," "]
[null,null,null,null,null,null,null,null,null,null,null,null,null,null,null,null,null,null,null,null,null,null,null," "]
[null,null,null,null,null,null,null,null,null,null,null,null,null,null,null,null,null,null,null,null,null,null,null," "]
[null,null,null,null,null,null,null,null,null,null,null,null,null,null,null,null,null,null,null,null,null,null,null," "]
[null,null,null,null,null,null,null,null,null,null,null,null,null,null,null,null,null,null,null,null,null,null,null," "]
[null,null,null,null,null,null,null,null,null,null,null,null,null,null,null,null,null,null,null,null,null,null,null," "]
[null,null,null,null,null,null,null,null,null,null,null,null,null,null,null,null,null,null,null,null,null,null,null," "]
[null,null,null,null,null,null,null,null,null,null,null,null,null,null,null,null,null,null,null,null,null,null,null," "]
[null,null,null,null,null,null,null,null,null,null,null,null,null,null,null,null,null,null,null,null,null,null,null," "]
[null,null,null,null,null,null,null,null,null,null,null,null,null,null,null,null,null,null,null,null,null,null,null," "]
[null,null,null,null,null,null,null,null,null,null,null,null,null,null,null,null,null,null,null,null,null,null,null," "]
[null,null,null,null,null,null,null,null,null,null,null,null,null,null,null,null,null,null,null,null,null,null,null," "]
[null,null,null,null,null,null,null,null,null,null,null,null,null,null,null,null,null,null,null,null,null,null,null," "]
[null,null,null,null,null,null,null,null,null,null,null,null,null,null,null,null,null,null,null,null,null,null,null," "]
[null,null,null,null,null,null,null,null,null,null,null,null,null,null,null,null,null,null,null,null,null,null,null," "]
[null,null,null,null,null,null,null,null,null,null,null,null,null,null,null,null,null,null,null,null,null,null,null," "]
[null,null,null,null,null,null,null,null,null,null,null,null,null,null,null,null,null,null,null,null,null,null,null," "]
[null,null,null,null,null,null,null,null,null,null,null,null,null,null,null,null,null,null,null,null,null,null,null," "]
[null,null,null,null,null,null,null,null,null,null,null,null,null,null,null,null,null,null,null,null,null,null,null," "]
[null,null,null,null,null,null,null,null,null,null,null,null,null,null,null,null,null,null,null,null,null,null,null," "]
[null,null,null,null,null,null,null,null,null,null,null,null,null,null,null,null,null,null,null,null,null,null,null," "]
[null,null,null,null,null,null,null,null,null,null,null,null,null,null,null,null,null,null,null,null,null,null,null," "]
[null,null,null,null,null,null,null,null,null,null,null,null,null,null,null,null,null,null,null,null,null,null,null," "]
[null,null,null,null,null,null,null,null,null,null,null,null,null,null,null,null,null,null,null,null,null,null,null," "]
[null,null,null,null,null,null,null,null,null,null,null,null,null,null,null,null,null,null,null,null,null,null,null," "]
[null,null,null,null,null,null,null,null,null,null,null,null,null,null,null,null,null,null,null,null,null,null,null," "]
[null,null,null,null,null,null,null,null,null,null,null,null,null,null,null,null,null,null,null,null,null,null,null," "]
[null,null,null,null,null,null,null,null,null,null,null,null,null,null,null,null,null,null,null,null,null,null,null," "]
[null,null,null,null,null,null,null,null,null,null,null,null,null,null,null,null,null,null,null,null,null,null,null," "]
[null,null,null,null,null,null,null,null,null,null,null,null,null,null,null,null,null,null,null,null,null,null,null," "]
[null,null,null,null,null,null,null,null,null,null,null,null,null,null,null,null,null,null,null,null,null,null,null," "]
[null,null,null,null,null,null,null,null,null,null,null,null,null,null,null,null,null,null,null,null,null,null,null," "]
[null,null,null,null,null,null,null,null,null,null,null,null,null,null,null,null,null,null,null,null,null,null,null," "]
[null,null,null,null,null,null,null,null,null,null,null,null,null,null,null,null,null,null,null,null,null,null,null," "]
[null,null,null,null,null,null,null,null,null,null,null,null,null,null,null,null,null,null,null,null,null,null,null," "]
[null,null,null,null,null,null,null,null,null,null,null,null,null,null,null,null,null,null,null,null,null,null,null," "]
[null,null,null,null,null,null,null,null,null,null,null,null,null,null,null,null,null,null,null,null,null,null,null," "]
[null,null,null,null,null,null,null,null,null,null,null,null,null,null,null,null,null,null,null,null,null,null,null," "]
[null,null,null,null,null,null,null,null,null,null,null,null,null,null,null,null,null,null,null,null,null,null,null," "]
[null,null,null,null,null,null,null,null,null,null,null,null,null,null,null,null,null,null,null,null,null,null,null," "]
[null,null,null,null,null,null,null,null,null,null,null,null,null,null,null,null,null,null,null,null,null,null,null," "]
[null,null,null,null,null,null,null,null,null,null,null,null,null,null,null,null,null,null,null,null,null,null,null," "]
[null,null,null,null,null,null,null,null,null,null,null,null,null,null,null,null,null,null,null,null,null,null,null," "]
[null,null,null,null,null,null,null,null,null,null,null,null,null,null,null,null,null,null,null,null,null,null,null," "]
[null,null,null,null,null,null,null,null,null,null,null,null,null,null,null,null,null,null,null,null,null,null,null," "]
[null,null,null,null,null,null,null,null,null,null,null,null,null,null,null,null,null,null,null,null,null,null,null," "]
[null,null,null,null,null,null,null,null,null,null,null,null,null,null,null,null,null,null,null,null,null,null,null," "]
[null,null,null,null,null,null,null,null,null,null,null,null,null,null,null,null,null,null,null,null,null,null,null," "]
[null,null,null,null,null,null,null,null,null,null,null,null,null,null,null,null,null,null,null,null,null,null,null," "]
[null,null,null,null,null,null,null,null,null,null,null,null,null,null,null,null,null,null,null,null,null,null,null," "]
[null,null,null,null,null,null,null,null,null,null,null,null,null,null,null,null,null,null,null,null,null,null,null," "]
[null,null,null,null,null,null,null,null,null,null,null,null,null,null,null,null,null,null,null,null,null,null,null," "]
[null,null,null,null,null,null,null,null,null,null,null,null,null,null,null,null,null,null,null,null,null,null,null," "]
[null,null,null,null,null,null,null,null,null,null,null,null,null,null,null,null,null,null,null,null,null,null,null," "]
[null,null,null,null,null,null,null,null,null,null,null,null,null,null,null,null,null,null,null,null,null,null,null," "]
[null,null,null,null,null,null,null,null,null,null,null,null,null,null,null,null,null,null,null,null,null,null,null," "]
[null,null,null,null,null,null,null,null,null,null,null,null,null,null,null,null,null,null,null,null,null,null,null," "]
[null,null,null,null,null,null,null,null,null,null,null,null,null,null,null,null,null,null,null,null,null,null,null," "]
[null,null,null,null,null,null,null,null,null,null,null,null,null,null,null,null,null,null,null,null,null,null,null," "]
[null,null,null,null,null,null,null,null,null,null,null,null,null,null,null,null,null,null,null,null,null,null,null," "]
[null,null,null,null,null,null,null,null,null,null,null,null,null,null,null,null,null,null,null,null,null,null,null," "]
[null,null,null,null,null,null,null,null,null,null,null,null,null,null,null,null,null,null,null,null,null,null,null," "]
[null,null,null,null,null,null,null,null,null,null,null,null,null,null,null,null,null,null,null,null,null,null,null," "]
[null,null,null,null,null,null,null,null,null,null,null,null,null,null,null,null,null,null,null,null,null,null,null," "]
[null,null,null,null,null,null,null,null,null,null,null,null,null,null,null,null,null,null,null,null,null,null,null," "]
[null,null,null,null,null,null,null,null,null,null,null,null,null,null,null,null,null,null,null,null,null,null,null," "]
[null,null,null,null,null,null,null,null,null,null,null,null,null,null,null,null,null,null,null,null,null,null,null," "]
[null,null,null,null,null,null,null,null,null,null,null,null,null,null,null,null,null,null,null,null,null,null,null," "]
[null,null,null,null,null,null,null,null,null,null,null,null,null,null,null,null,null,null,null,null,null,null,null," "]
[null,null,null,null,null,null,null,null,null,null,null,null,null,null,null,null,null,null,null,null,null,null,null," "]
[null,null,null,null,null,null,null,null,null,null,null,null,null,null,null,null,null,null,null,null,null,null,null," "]
[null,null,null,null,null,null,null,null,null,null,null,null,null,null,null,null,null,null,null,null,null,null,null," "]
[null,null,null,null,null,null,null,null,null,null,null,null,null,null,null,null,null,null,null,null,null,null,null," "]
[null,null,null,null,null,null,null,null,null,null,null,null,null,null,null,null,null,null,null,null,null,null,null," "]
[null,null,null,null,null,null,null,null,null,null,null,null,null,null,null,null,null,null,null,null,null,null,null," "]
[null,null,null,null,null,null,null,null,null,null,null,null,null,null,null,null,null,null,null,null,null,null,null," "]
[null,null,null,null,null,null,null,null,null,null,null,null,null,null,null,null,null,null,null,null,null,null,null," "]
[null,null,null,null,null,null,null,null,null,null,null,null,null,null,null,null,null,null,null,null,null,null,null," "]
[null,null,null,null,null,null,null,null,null,null,null,null,null,null,null,null,null,null,null,null,null,null,null," "]
[null,null,null,null,null,null,null,null,null,null,null,null,null,null,null,null,null,null,null,null,null,null,null," "]
[null,null,null,null,null,null,null,null,null,null,null,null,null,null,null,null,null,null,null,null,null,null,null," "]
[null,null,null,null,null,null,null,null,null,null,null,null,null,null,null,null,null,null,null,null,null,null,null," "]
[null,null,null,null,null,null,null,null,null,null,null,null,null,null,null,null,null,null,null,null,null,null,null," "]
[null,null,null,null,null,null,null,null,null,null,null,null,null,null,null,null,null,null,null,null,null,null,null," "]
[null,null,null,null,null,null,null,null,null,null,null,null,null,null,null,null,null,null,null,null,null,null,null," "]
[null,null,null,null,null,null,null,null,null,null,null,null,null,null,null,null,null,null,null,null,null,null,null," "]
[null,null,null,null,null,null,null,null,null,null,null,null,null,null,null,null,null,null,null,null,null,null,null," "]
[null,null,null,null,null,null,null,null,null,null,null,null,null,null,null,null,null,null,null,null,null,null,null," "]
[null,null,null,null,null,null,null,null,null,null,null,null,null,null,null,null,null,null,null,null,null,null,null," "]
[null,null,null,null,null,null,null,null,null,null,null,null,null,null,null,null,null,null,null,null,null,null,null," "]
[null,null,null,null,null,null,null,null,null,null,null,null,null,null,null,null,null,null,null,null,null,null,null," "]
[null,null,null,null,null,null,null,null,null,null,null,null,null,null,null,null,null,null,null,null,null,null,null," "]
[null,null,null,null,null,null,null,null,null,null,null,null,null,null,null,null,null,null,null,null,null,null,null," "]
[null,null,null,null,null,null,null,null,null,null,null,null,null,null,null,null,null,null,null,null,null,null,null," "]
[null,null,null,null,null,null,null,null,null,null,null,null,null,null,null,null,null,null,null,null,null,null,null," "]
[null,null,null,null,null,null,null,null,null,null,null,null,null,null,null,null,null,null,null,null,null,null,null," "]
[null,null,null,null,null,null,null,null,null,null,null,null,null,null,null,null,null,null,null,null,null,null,null," "]
[null,null,null,null,null,null,null,null,null,null,null,null,null,null,null,null,null,null,null,null,null,null,null," "]
[null,null,null,null,null,null,null,null,null,null,null,null,null,null,null,null,null,null,null,null,null,null,null," "]
[null,null,null,null,null,null,null,null,null,null,null,null,null,null,null,null,null,null,null,null,null,null,null," "]
[null,null,null,null,null,null,null,null,null,null,null,null,null,null,null,null,null,null,null,null,null,null,null," "]
[null,null,null,null,null,null,null,null,null,null,null,null,null,null,null,null,null,null,null,null,null,null,null," "]
[null,null,null,null,null,null,null,null,null,null,null,null,null,null,null,null,null,null,null,null,null,null,null," "]
[null,null,null,null,null,null,null,null,null,null,null,null,null,null,null,null,null,null,null,null,null,null,null," "]
[null,null,null,null,null,null,null,null,null,null,null,null,null,null,null,null,null,null,null,null,null,null,null," "]
[null,null,null,null,null,null,null,null,null,null,null,null,null,null,null,null,null,null,null,null,null,null,null," "]
[null,null,null,null,null,null,null,null,null,null,null,null,null,null,null,null,null,null,null,null,null,null,null," "]
[null,null,null,null,null,null,null,null,null,null,null,null,null,null,null,null,null,null,null,null,null,null,null," "]
[null,null,null,null,null,null,null,null,null,null,null,null,null,null,null,null,null,null,null,null,null,null,null," "]
[null,null,null,null,null,null,null,null,null,null,null,null,null,null,null,null,null,null,null,null,null,null,null," "]
[null,null,null,null,null,null,null,null,null,null,null,null,null,null,null,null,null,null,null,null,null,null,null," "]
[null,null,null,null,null,null,null,null,null,null,null,null,null,null,null,null,null,null,null,null,null,null,null," "]
[null,null,null,null,null,null,null,null,null,null,null,null,null,null,null,null,null,null,null,null,null,null,null," "]
[null,null,null,null,null,null,null,null,null,null,null,null,null,null,null,null,null,null,null,null,null,null,null," "]
[null,null,null,null,null,null,null,null,null,null,null,null,null,null,null,null,null,null,null,null,null,null,null," "]
[null,null,null,null,null,null,null,null,null,null,null,null,null,null,null,null,null,null,null,null,null,null,null," "]
[null,null,null,null,null,null,null,null,null,null,null,null,null,null,null,null,null,null,null,null,null,null,null," "]
[null,null,null,null,null,null,null,null,null,null,null,null,null,null,null,null,null,null,null,null,null,null,null," "]
[null,null,null,null,null,null,null,null,null,null,null,null,null,null,null,null,null,null,null,null,null,null,null," "]
[null,null,null,null,null,null,null,null,null,null,null,null,null,null,null,null,null,null,null,null,null,null,null," "]
[null,null,null,null,null,null,null,null,null,null,null,null,null,null,null,null,null,null,null,null,null,null,null," "]
[null,null,null,null,null,null,null,null,null,null,null,null,null,null,null,null,null,null,null,null,null,null,null," "]
[null,null,null,null,null,null,null,null,null,null,null,null,null,null,null,null,null,null,null,null,null,null,null," "]
[null,null,null,null,null,null,null,null,null,null,null,null,null,null,null,null,null,null,null,null,null,null,null," "]
[null,null,null,null,null,null,null,null,null,null,null,null,null,null,null,null,null,null,null,null,null,null,null," "]
[null,null,null,null,null,null,null,null,null,null,null,null,null,null,null,null,null,null,null,null,null,null,null," "]
[null,null,null,null,null,null,null,null,null,null,null,null,null,null,null,null,null,null,null,null,null,null,null," "]
[null,null,null,null,null,null,null,null,null,null,null,null,null,null,null,null,null,null,null,null,null,null,null," "]
[null,null,null,null,null,null,null,null,null,null,null,null,null,null,null,null,null,null,null,null,null,null,null," "]
[null,null,null,null,null,null,null,null,null,null,null,null,null,null,null,null,null,null,null,null,null,null,null," "]
[null,null,null,null,null,null,null,null,null,null,null,null,null,null,null,null,null,null,null,null,null,null,null," "]
[null,null,null,null,null,null,null,null,null,null,null,null,null,null,null,null,null,null,null,null,null,null,null," "]
[null,null,null,null,null,null,null,null,null,null,null,null,null,null,null,null,null,null,null,null,null,null,null," "]
[null,null,null,null,null,null,null,null,null,null,null,null,null,null,null,null,null,null,null,null,null,null,null," "]
[null,null,null,null,null,null,null,null,null,null,null,null,null,null,null,null,null,null,null,null,null,null,null," "]
[null,null,null,null,null,null,null,null,null,null,null,null,null,null,null,null,null,null,null,null,null,null,null," "]
[null,null,null,null,null,null,null,null,null,null,null,null,null,null,null,null,null,null,null,null,null,null,null," "]
[null,null,null,null,null,null,null,null,null,null,null,null,null,null,null,null,null,null,null,null,null,null,null," "]
[null,null,null,null,null,null,null,null,null,null,null,null,null,null,null,null,null,null,null,null,null,null,null," "]
[null,null,null,null,null,null,null,null,null,null,null,null,null,null,null,null,null,null,null,null,null,null,null," "]
[null,null,null,null,null,null,null,null,null,null,null,null,null,null,null,null,null,null,null,null,null,null,null," "]
[null,null,null,null,null,null,null,null,null,null,null,null,null,null,null,null,null,null,null,null,null,null,null," "]
[null,null,null,null,null,null,null,null,null,null,null,null,null,null,null,null,null,null,null,null,null,null,null," "]
[null,null,null,null,null,null,null,null,null,null,null,null,null,null,null,null,null,null,null,null,null,null,null," "]
[null,null,null,null,null,null,null,null,null,null,null,null,null,null,null,null,null,null,null,null,null,null,null," "]
[null,null,null,null,null,null,null,null,null,null,null,null,null,null,null,null,null,null,null,null,null,null,null," "]
[null,null,null,null,null,null,null,null,null,null,null,null,null,null,null,null,null,null,null,null,null,null,null," "]
[null,null,null,null,null,null,null,null,null,null,null,null,null,null,null,null,null,null,null,null,null,null,null," "]
[null,null,null,null,null,null,null,null,null,null,null,null,null,null,null,null,null,null,null,null,null,null,null," "]
[null,null,null,null,null,null,null,null,null,null,null,null,null,null,null,null,null,null,null,null,null,null,null," "]
[null,null,null,null,null,null,null,null,null,null,null,null,null,null,null,null,null,null,null,null,null,null,null," "]
[null,null,null,null,null,null,null,null,null,null,null,null,null,null,null,null,null,null,null,null,null,null,null," "]
[null,null,null,null,null,null,null,null,null,null,null,null,null,null,null,null,null,null,null,null,null,null,null," "]
[null,null,null,null,null,null,null,null,null,null,null,null,null,null,null,null,null,null,null,null,null,null,null," "]
[null,null,null,null,null,null,null,null,null,null,null,null,null,null,null,null,null,null,null,null,null,null,null," "]
[null,null,null,null,null,null,null,null,null,null,null,null,null,null,null,null,null,null,null,null,null,null,null," "]
[null,null,null,null,null,null,null,null,null,null,null,null,null,null,null,null,null,null,null,null,null,null,null," "]
[null,null,null,null,null,null,null,null,null,null,null,null,null,null,null,null,null,null,null,null,null,null,null," "]
[null,null,null,null,null,null,null,null,null,null,null,null,null,null,null,null,null,null,null,null,null,null,null," "]
[null,null,null,null,null,null,null,null,null,null,null,null,null,null,null,null,null,null,null,null,null,null,null," "]
[null,null,null,null,null,null,null,null,null,null,null,null,null,null,null,null,null,null,null,null,null,null,null," "]
[null,null,null,null,null,null,null,null,null,null,null,null,null,null,null,null,null,null,null,null,null,null,null," "]
[null,null,null,null,null,null,null,null,null,null,null,null,null,null,null,null,null,null,null,null,null,null,null," "]
[null,null,null,null,null,null,null,null,null,null,null,null,null,null,null,null,null,null,null,null,null,null,null," "]
[null,null,null,null,null,null,null,null,null,null,null,null,null,null,null,null,null,null,null,null,null,null,null," "]
[null,null,null,null,null,null,null,null,null,null,null,null,null,null,null,null,null,null,null,null,null,null,null," "]
[null,null,null,null,null,null,null,null,null,null,null,null,null,null,null,null,null,null,null,null,null,null,null," "]
[null,null,null,null,null,null,null,null,null,null,null,null,null,null,null,null,null,null,null,null,null,null,null," "]
[null,null,null,null,null,null,null,null,null,null,null,null,null,null,null,null,null,null,null,null,null,null,null," "]
[null,null,null,null,null,null,null,null,null,null,null,null,null,null,null,null,null,null,null,null,null,null,null," "]
[null,null,null,null,null,null,null,null,null,null,null,null,null,null,null,null,null,null,null,null,null,null,null," "]
[null,null,null,null,null,null,null,null,null,null,null,null,null,null,null,null,null,null,null,null,null,null,null," "]
[null,null,null,null,null,null,null,null,null,null,null,null,null,null,null,null,null,null,null,null,null,null,null," "]
[null,null,null,null,null,null,null,null,null,null,null,null,null,null,null,null,null,null,null,null,null,null,null," "]
[null,null,null,null,null,null,null,null,null,null,null,null,null,null,null,null,null,null,null,null,null,null,null," "]
[null,null,null,null,null,null,null,null,null,null,null,null,null,null,null,null,null,null,null,null,null,null,null," "]
[null,null,null,null,null,null,null,null,null,null,null,null,null,null,null,null,null,null,null,null,null,null,null," "]
[null,null,null,null,null,null,null,null,null,null,null,null,null,null,null,null,null,null,null,null,null,null,null," "]
[null,null,null,null,null,null,null,null,null,null,null,null,null,null,null,null,null,null,null,null,null,null,null," "]
[null,null,null,null,null,null,null,null,null,null,null,null,null,null,null,null,null,null,null,null,null,null,null," "]
[null,null,null,null,null,null,null,null,null,null,null,null,null,null,null,null,null,null,null,null,null,null,null," "]
[null,null,null,null,null,null,null,null,null,null,null,null,null,null,null,null,null,null,null,null,null,null,null," "]
[null,null,null,null,null,null,null,null,null,null,null,null,null,null,null,null,null,null,null,null,null,null,null," "]
[null,null,null,null,null,null,null,null,null,null,null,null,null,null,null,null,null,null,null,null,null,null,null," "]
[null,null,null,null,null,null,null,null,null,null,null,null,null,null,null,null,null,null,null,null,null,null,null," "]
[null,null,null,null,null,null,null,null,null,null,null,null,null,null,null,null,null,null,null,null,null,null,null," "]
[null,null,null,null,null,null,null,null,null,null,null,null,null,null,null,null,null,null,null,null,null,null,null," "]
[null,null,null,null,null,null,null,null,null,null,null,null,null,null,null,null,null,null,null,null,null,null,null," "]
[null,null,null,null,null,null,null,null,null,null,null,null,null,null,null,null,null,null,null,null,null,null,null," "]
[null,null,null,null,null,null,null,null,null,null,null,null,null,null,null,null,null,null,null,null,null,null,null," "]
[null,null,null,null,null,null,null,null,null,null,null,null,null,null,null,null,null,null,null,null,null,null,null," "]
[null,null,null,null,null,null,null,null,null,null,null,null,null,null,null,null,null,null,null,null,null,null,null," "]
[null,null,null,null,null,null,null,null,null,null,null,null,null,null,null,null,null,null,null,null,null,null,null," "]
[null,null,null,null,null,null,null,null,null,null,null,null,null,null,null,null,null,null,null,null,null,null,null," "]
[null,null,null,null,null,null,null,null,null,null,null,null,null,null,null,null,null,null,null,null,null,null,null," "]